Workbook

Sheet Disclaimer

Sheet Instructions
A1: Power Budget Instructions
A40: Press the Start button to begin using the Power Budget Tool

Sheet Summary
A1: Power Budget | H1: Product Code Summary
A2: Chassis / Power Supply | B2: =INDEX('Chassis Definition'!$A$3:$A$9,'Configure System'!B3) -> (Select Chassis) | H2: H2312KPKR2 | I2: H2312KPFKR2 | J2: H2312TPKR2 | K2: H2312TPFKR2
A3: System Totals | B3: 12V Main (Amps) | C3: 12V Stby (Amps) | D3: Total System Watts | H3: H2216KPKR2 | I3: H2216KPFKR2 | J3: H2216TPKR2 | K3: H2216TPFKR2
A4: =CONCATENATE("Compute Module 1: ",INDEX(Serverboard!A$2:A$13,'Configure Module 1'!B3)) -> Compute Module 1: (Select Serverboard) | B4: ='Configure Module 1'!$K$17 -> 0 | C4: ='Configure Module 1'!$L$17 -> 0 | D4: ='Configure Module 1'!$M$17 -> 0 | H4: H2224KPKR2(1600W) | J4: H2224TPKR2(1600W)
A5: =CONCATENATE("Compute Module 2: ",INDEX(Serverboard!A$2:A$13,'Configure Module 2'!B3)) -> Compute Module 2: (Select Serverboard) | B5: ='Configure Module 2'!$K$17 -> 0 | C5: ='Configure Module 2'!$L$17 -> 0 | D5: ='Configure Module 2'!$M$17 -> 0 | H5: H2224KPKR2(2200W) | J5: H2224TPKR2(2200W)
A6: =CONCATENATE("Compute Module 3: ",INDEX(Serverboard!A$2:A$13,'Configure Module 3'!B3)) -> Compute Module 3: (Select Serverboard) | B6: ='Configure Module 3'!$K$17 -> 0 | C6: ='Configure Module 3'!$L$17 -> 0 | D6: ='Configure Module 3'!$M$17 -> 0
A7: =CONCATENATE("Compute Module 4: ",INDEX(Serverboard!A$2:A$13,'Configure Module 4'!B3)) -> Compute Module 4: (Select Serverboard) | B7: ='Configure Module 4'!$K$17 -> 0 | C7: ='Configure Module 4'!$L$17 -> 0 | D7: ='Configure Module 4'!$M$17 -> 0 | I7: PSU Limitation
A8: Hard Drive: | B8: =SUM('Configure System'!G5:G11) -> 0 | C8: =SUM('Configure System'!H5:H11) -> 0 | D8: =SUM('Configure System'!I5:I11) -> 0 | I8: 0 | J8: 0
A9: Chassis & Peripherals: | B9: ='Configure System'!G3 -> 0 | C9: ='Configure System'!H3 -> 0 | D9: ='Configure System'!I3 -> 0 | H9: H2312KR/2x1600W CRPS/3x4056 dual rotor fan | I9: =IF(B20=1,1600,1000) -> 1600 | J9: =IF(B20=1,2160,1360) -> 2160
A10: System Totals: | B10: =SUM(B4:B9) -> 0 | C10: =SUM(C4:C9) -> 0 | D10: =SUM(D4:D9) -> 0 | H10: H2216KR/2x1600W CRPS/3x4056 dual rotor fan | I10: =IF(B20=1,1600,1000) -> 1600 | J10: =IF(B20=1,2160,1360) -> 2160
A11: CLST Allowance | B11: ='Configure Module 1'!K18+'Configure Module 2'!K18+'Configure Module 3'!K18+'Configure Module 4'!K18 -> 0 | C11: ='Configure Module 1'!L18+'Configure Module 2'!L18+'Configure Module 3'!L18+'Configure Module 4'!L18 -> 0 | D11: =B11*12 -> 0 | H11: H2224KPKR2(1600W) CRPS/3x4056 dual rotor fan
A12: System Power during CLST | B12: =B10-B11 -> 0 | C12: =C10-C11 -> 0 | D12: =D10-D11 -> 0 | H12: H2224KPKR2(2200W) CRPS/3x4056 dual rotor fan
A13: =INDEX(H20:H21,B20)&"VAC"&" PSU DC Output Limits (2+0 Mode)" -> 220VAC PSU DC Output Limits (2+0 Mode) | B13: =INDEX('Chassis Definition'!D3:E11,'Configure System'!B3,B20)*2 -> 0 | C13: =INDEX('Chassis Definition'!F3:F11,'Configure System'!B3)*2 -> 0 | D13: =PS1_12*12 -> 0 | E13: <-- These limits may change based on inlet voltage | H13: PSU | I13: Rating | J13: OC CLST
A14: =INDEX(H20:H21,B20)&"VAC"&" PSU DC Output Limits (1+1 Mode)" -> 220VAC PSU DC Output Limits (1+1 Mode) | B14: =INDEX('Chassis Definition'!D3:E11,'Configure System'!B3,B20)*1 -> 0 | C14: =INDEX('Chassis Definition'!F3:F11,'Configure System'!B3)*1 -> 0 | D14: =B14*12 -> 0 | H14: =INDEX(I8:J12,'Configure System'!B3,1) -> 0 | I14: =INDEX(I8:J12,'Configure System'!B3,1) -> 0 | J14: =INDEX(I8:J12,'Configure System'!B3,2) -> 0
A15: Margins to Limit (2+0 Mode) | B15: =PS1_12-B10 -> 0 | C15: =PS1_5VSB-C10 -> 0 | D15: =ps1CombLim-PowerTotal -> 0 | E15: =IF(D15<0,"<-- Limits Exceeded!","<--System Margins") -> <--System Margins | I15: =I14-PowerTotal -> 0 | J15: =J14-PowerTotal -> 0
A16: Margins to Limit (1+1 Mode) | B16: =B14-B10 -> 0 | C16: =C14-C10 -> 0 | D16: =D14-PowerTotal -> 0 | I16: Unconstrained Redundant Mode: No system throttle. All 4 nodes work normally. | J16: Optimal Redundant Mode: 1. With BIOS setting “server management - shutdown policy” “disable”, all nodes in the system may be throttled and have lower performance. 2. With BIOS “server management--shutdown policy” “enable”, Node3 and 4 will shutdown while Node1 and 2 keep running without throttling. Node 1 and Node 2 have no performance lose. | K16: Non Redundant Mode: All nodes in the system may shutdown due to OCP.
A17: Negative margins show configuration exceeds a specified limit.
A19: AC inlet power estimate (below)
A20: Input Voltage: | B20: 1 | C20: (Volts) | H20: 220 | I20: =INDEX('Chassis Definition'!N4:O11,'Configure System'!B3-1,Summary!B20) -> 
A21: Estimated Inlet Power: | B21: =IF(D15>0,PowerTotal/INDEX('Chassis Definition'!N4:O11,'Configure System'!B3-1,Summary!B20),"NA") -> NA | C21: (Watts) | H21: 115
A22: Estimated Inlet Current: | B22: =IF(B21="NA","NA",B21/ABS(INDEX(H20:H23,B20))) -> NA | C22: (Amps)
A23: Estimated Thermal Dissipation: | B23: =IF(B21="NA","NA",B21*3.41) -> NA | C23: (BTU/Hr)
A24: Note: Estimates are most accurate at max loading.
L25: PSU | M25: System Loading | N25: Working Mode @1 PSU failure | O25: Description
M26: <Rating | N26: Unconstrained Redundant Mode | O26: No system throttle. All 4 nodes work normally.
A27: If your desired configuration exceeds the power supply limits, two power supplies are required. The two power supplies will operate in a current sharing mode | M27: Rating< <OC CLST | N27: Optimal Redundant Mode | O27: 1. With BIOS setting “server management - shutdown policy” “disable”, all nodes in the system may be throttled and have lower performance. 2. With BIOS “server management--shutdown policy” “enable”, Node3 and 4 will shutdown while Node1 and 2 keep running without throttling. Node 1 and Node 2 have no performance lose.
A28: to deliver the additional power needed for your configuration. Furthermore, the two power supplies may need to be sourced from separate AC circuits in order to not | M28: >OC CLST | N28: Non Redundant Mode | O28: All nodes in the system may shutdown due to OCP.
A29: exceed maximum AC outlet current. Exceeding maximum AC outlet current may cause a circuit breaker to trip.
A31: Revision: | B31: =Revision!B1 -> 1 | C31: =Revision!A1 -> 2019-04-15

Sheet Configure System
A1: Power Budget | B1: =CONCATENATE(INDEX('Chassis Definition'!$A$3:$A$12,B3), " System Config") -> (Select Chassis) System Config | K1: HSBP 5V VRM Efficiency
A2: System Feature | B2: Description | C2: Qty | E2: +3.3V (amps) | F2: +5V (amps) | G2: 12V MAIN (Amps) | H2: 12V Stby (Amps) | I2: Power (watts) | K2: =INDEX('Chassis Definition'!M$3:M$12,$B3) -> 1
A3: Chassis: | B3: 1 | G3: =INDEX(HSBP!$D$2:$D$5,B3) -> 0 | H3: =INDEX(HSBP!$E$2:$E$5,B3) -> 0 | I3: =INDEX(HSBP!$G$2:$G$5,B3) -> 0 | M3: =IF((B3<3)*(B3>1), "<--Not support PCIe SSD", " ") ->  | O3: =B3 -> 1
A4: HSBP: | B4: =INDEX(HSBP!$A$2:$A$9,B3) -> Select Backplane or Midplane | M4: =INDEX(Q3:Q6, $B3) ->  | Q4: <--Max 12 pcs Drives support | R4: <--Max 3pcs Drives Support | S4: <--Not Support PCIe SSD
A5: Module 1 Drive Type: | B5: 1 | C5: 0 | F5: =INDEX(HardDrive!$C$2:$C$10,B5) *C5 * 1 -> 0 | G5: =IF(K2>0,(INDEX(HardDrive!$D$2:$D$10,B5)*C5+((F5*5)/12)/$K$2),INDEX(HardDrive!$D$2:$D$10,B5)*C5+((F5*5)/12)/#REF!) -> 0 | H5: 0 | I5: =G5*12 -> 0 | M5: =INDEX(R3:R6, $B3) ->  | N5: =IF(D5>INDEX('Chassis Definition'!M3:M11,C3)," <-- Max Supported HDD Count Exceeded!"," ") ->  | Q5: <--Max 24 pcs 2.5" Drives support | R5: <--Max 6pcs 2.5" Drives Support | S5: <--Max 2pcs PCIe SSD Support
A6: Module 1 PCIe SSD: | B6: 1 | C6: 0 | F6: =INDEX(HardDrive!$C$16:$C$21,B6) *C6 * 1 -> 0 | G6: =IF(K2>0,(INDEX(HardDrive!$D$16:$D$21,B6)*C6+((F6*5)/12)/$K$2),INDEX(HardDrive!$D$16:$D$21,B6)*C6+((F6*5)/12)/#REF!) -> 0 | H6: 0 | I6: 0 | J6: =IF(C6>(INDEX('Chassis Definition'!$L$3:$L$12,'Configure System'!$B5)),"<-- Max Supported HDD Count Exceeded!"," ") ->  | M6: =INDEX(S3:S6, $B3) ->  | Q6: <--Max 4 pcs 2.5" SSD support | R6: <--Max 1pcs 2.5" SSD Support | S6: <--Not Support PCIe SSD
A7: Module 2 Drive Type: | B7: 1 | C7: 0 | F7: =INDEX(HardDrive!$C$2:$C$10,B7) *C7 * 1 -> 0 | G7: =IF(K2>0,(INDEX(HardDrive!$D$2:$D$10,B7)*C7+((F7*5)/12)/$K$2),INDEX(HardDrive!$D$2:$D$10,B7)*C7+((F7*5)/12)/#REF!) -> 0 | H7: 0 | I7: 0 | J7: =IF((INDEX(Serverboard!$M$3:$M$9,'Configure System'!$B3)),"<-- Max Supported HDD Count Exceeded!"," ") ->  | M7: =INDEX(R3:R6, $B3) -> 
A8: Module 2 PCIe SSD: | B8: 1 | C8: 0 | F8: =INDEX(HardDrive!$C$16:$C$21,B8) *C8 * 1 -> 0 | G8: =IF(K2>0,(INDEX(HardDrive!$D$16:$D$21,B8)*C8+((F8*5)/12)/$K$2),INDEX(HardDrive!$D$16:$D$21,B8)*C8+((F8*5)/12)/#REF!) -> 0 | H8: 0 | I8: 0 | J8: =IF(C8>(INDEX('Chassis Definition'!$L$3:$L$12,'Configure System'!$B7)),"<-- Max Supported HDD Count Exceeded!"," ") ->  | M8: =INDEX(S3:S6, $B3) -> 
A9: Module 3 Drive Type: | B9: 1 | C9: 0 | F9: =INDEX(HardDrive!$C$2:$C$10,B9) *C9 * 1 -> 0 | G9: =IF(K2>0,(INDEX(HardDrive!$D$2:$D$10,B9)*C9+((F9*5)/12)/$K$2),INDEX(HardDrive!$D$2:$D$10,B9)*C9+((F9*5)/12)/#REF!) -> 0 | H9: 0 | I9: 0 | J9: =IF(C9>(INDEX('Chassis Definition'!$L$3:$L$12,'Configure System'!$B3)),"<-- Max Supported HDD Count Exceeded!"," ") ->  | M9: =INDEX(R3:R6, $B3) -> 
A10: Module 3 PCIe SSD: | B10: 1 | C10: 0 | F10: =INDEX(HardDrive!$C$16:$C$21,B10) *C10 * 1 -> 0 | G10: =IF(K2>0,(INDEX(HardDrive!$D$16:$D$21,B10)*C10+((F10*5)/12)/$K$2),INDEX(HardDrive!$D$16:$D$21,B10)*C10+((F10*5)/12)/#REF!) -> 0 | H10: 0 | I10: 0 | J10: =IF(C10>(INDEX('Chassis Definition'!$L$3:$L$12,'Configure System'!$B9)),"<-- Max Supported HDD Count Exceeded!"," ") ->  | M10: =INDEX(S3:S6, $B3) -> 
A11: Module 4 Drive Type: | B11: 1 | C11: 0 | F11: =INDEX(HardDrive!$C$2:$C$10,B11) *C11 * 1 -> 0 | G11: =IF(K2>0,(INDEX(HardDrive!$D$2:$D$10,B11)*C11+((F11*5)/12)/$K$2),INDEX(HardDrive!$D$2:$D$10,B11)*C11+((F11*5)/12)/#REF!) -> 0 | H11: 0 | I11: 0 | J11: =IF(C11>(INDEX('Chassis Definition'!$L$3:$L$12,'Configure System'!$B3)),"<-- Max Supported HDD Count Exceeded!"," ") ->  | M11: =INDEX(R3:R6, $B3) -> 
A12: Module 4 PCIe SSD: | B12: 1 | C12: 0 | F12: =INDEX(HardDrive!$C$16:$C$21,B12) *C12 * 1 -> 0 | G12: =IF(K2>0,(INDEX(HardDrive!$D$16:$D$21,B12)*C12+((F12*5)/12)/$K$2),INDEX(HardDrive!$D$16:$D$21,B12)*C12+((F12*5)/12)/#REF!) -> 0 | H12: 0 | I12: 0 | J12: =IF(C12>(INDEX('Chassis Definition'!$L$3:$L$12,'Configure System'!$B11)),"<-- Max Supported HDD Count Exceeded!"," ") ->  | M12: =INDEX(S3:S6, $B3) -> 
B13: SubTotals: | F13: =SUM(F3:F11) -> 0 | G13: =SUM(G3:G11) -> 0 | H13: =SUM(H3:H11) -> 0 | I13: =SUM(I3:I11) -> 0
B14: SubTotal Chassis Power (Watts): | F14: =F13*5 -> 0 | G14: =G13*12 -> 0 | H14: =H13*12 -> 0 | I14: =SUM(E14:H14) -> 0

Sheet Configure Module 1
A1: Power Budget | B1: =CONCATENATE("Compute Module 1: ",INDEX(Serverboard!A$2:A$13,$B3)," Configuration") -> Compute Module 1: (Select Serverboard) Configuration | O1: CPU VRM Efficiency | P1: 3.3v VRM Efficiency | Q1: 5v VRM Efficiency
A2: Serverboard Feature | B2: Description | D2: +3.3V (amps) | E2: +5V (amps) | F2: +12V (amps) | G2: 12V CPU1 (amps) | H2: 12V CPU2 (amps) | I2: 5V stby (amps) | J2: Max 3.3v/5v (watts) | K2: 12V MAIN (Amps) | L2: 12V Stby (Amps) | M2: Power (Watts) | O2: =INDEX(Serverboard!H$2:H$11,$B3) -> 1 | P2: =INDEX(Serverboard!I$2:I$11,$B3) -> 1 | Q2: =INDEX(Serverboard!J$2:J$11,$B3) -> 1
A3: Computer Node: | B3: 1 | D3: =INDEX(Serverboard!B$2:B$13,$B3) *1 -> 0 | E3: =INDEX(Serverboard!C$2:C$13,$B3) *1 -> 0 | F3: =INDEX(Serverboard!D$2:D$13,$B3) *1 -> 0 | I3: =INDEX(Serverboard!F$2:F$13,$B3) *1 -> 0 | K3: =F3+G3+H3 -> 0 | L3: =I3/0.87/12*5 -> 0 | M3: =INDEX(Serverboard!G$2:G$13,$B3) *1 -> 0
A4: Processors 1: | B4: 1 | G4: =(C5-1)*INDEX(Processors!B$2:B$60,$B4)/12/VRMefficiency -> 0 | K4: =F4+G4+H4+I4 -> 0 | L4: =I4/0.87 -> 0 | M4: =K4*12 -> 0 | N4: *This line includes correction factors.
B5: Quantity: | C5: 1
A6: Processors 2: | B6: 1 | H6: =(C7-1)*INDEX(Processors!B$2:B$60,$B6)/12/VRMefficiency -> 0 | K6: =F6+G6+H6+I6 -> 0 | L6: =I6/0.87 -> 0 | M6: =K6*12 -> 0 | N6: *This line includes correction factors.
B7: Quantity: | C7: 1
A9: System Fans: | B9: =IF((B3>1)*AND(B3<10),"3 X 4056 dual rotor fan","") ->  | F9: =IF(B9="",0,6.3) -> 0 | K9: =F9+G9+H9 -> 0 | L9: =I9/0.87/12 -> 0 | M9: =K9*12 -> 0
A10: CPU 1 Memory: | B10: 1 | C10: 1 | G10: =(C10-1)*INDEX(Memory!B$4:B$16,$B10)/12/0.9 -> 0 | K10: 0 | L10: 0 | M10: =G10*12 -> 0
A11: CPU 2 Memory: | B11: 1 | C11: 1 | H11: =(C11-1)*INDEX(Memory!B$4:B$16,$B11)/12/0.9 -> 0 | K11: 0 | L11: 0 | M11: =H11*12 -> 0
A12: PCIe Slot 1: | B12: 1 | D12: =INDEX(PCI!B$2:B$8,$B12) -> 0 | E12: =INDEX(PCI!C$2:C$8,$B12) -> 0 | F12: =INDEX(PCI!D$2:D$8,$B12)+((D12*3.3)/12)/$P$2+((E12*5)/12)/$Q$2 -> 0 | K12: 0 | L12: 0 | M12: =F12*12 -> 0
A14: PCIe Slot 2: | B14: 1 | D14: =INDEX(PCI!B$10:B$15,$B14) -> 0 | E14: =INDEX(PCI!C$10:C$15,$B14) -> 0 | F14: =INDEX(PCI!D$10:D$15,$B14)+((D14*3.3)/12)/$P$2+((E14*5)/12)/$Q$2 -> 0 | K14: 0 | L14: 0 | M14: =F14*12 -> 0
A15: M.2: | B15: 1 | F15: =INDEX(HardDrive!D$25:D$30,$B15) -> 0 | K15: =F15+G15+H15 -> 0 | L15: =I15/0.87/12 -> 0 | M15: =F15*12 -> 0
B17: Compute Module 1 SubTotals: | F17: =SUM(F4:F14) -> 0 | G17: =SUM(G4:G14) -> 0 | H17: =SUM(H6:H14) -> 0 | I17: =SUM(I4:I14) -> 0 | K17: =SUM(K4:K14) -> 0 | L17: =SUM(L4:L14) -> 0 | M17: =SUM(M3:M14) -> 0 | O17: CPU1 | P17: CPU2 | Q17: DIMM1 | R17: DIMM2
B18: CLST Allowance: | K18: =M18/12 -> 0 | L18: 0 | M18: =SUM(O18:R18) -> 0 | O18: =IF(B4>1,INDEX(Processors!G2:G54,$B4)*(C5-1),0) -> 0 | P18: =IF(B6>1,INDEX(Processors!G2:G54,$B6)*(C7-1),0) -> 0 | Q18: =IF(C10>1,INDEX(Memory!Q4:T14,'Configure Module 1'!B10,$C10-1),0) -> 0 | R18: =IF(C11>1,INDEX(Memory!Q4:T14,'Configure Module 1'!B11,$C11-1),0) -> 0

Sheet Configure Module 2
A1: Power Budget | B1: =CONCATENATE("Compute Module 2: ",INDEX(Serverboard!A$2:A$13,$B3)," Configuration") -> Compute Module 2: (Select Serverboard) Configuration | O1: CPU VRM Efficiency | P1: 3.3v VRM Efficiency | Q1: 5v VRM Efficiency
A2: Serverboard Feature | B2: Description | E2: +5V (amps) | F2: +12V (amps) | G2: 12V CPU1 (amps) | H2: 12V CPU2 (amps) | I2: 5V stby (amps) | J2: Max 3.3v/5v (watts) | K2: 12V MAIN (Amps) | L2: 12V Stby (Amps) | M2: Power (Watts) | O2: =INDEX(Serverboard!H$2:H$11,$B3) -> 1 | P2: =INDEX(Serverboard!I$2:I$11,$B3) -> 1 | Q2: =INDEX(Serverboard!J$2:J$11,$B3) -> 1
A3: Computer Node: | B3: 1 | D3: =INDEX(Serverboard!B$2:B$13,$B3) *1 -> 0 | E3: =INDEX(Serverboard!C$2:C$13,$B3) *1 -> 0 | F3: =INDEX(Serverboard!D$2:D$13,$B3) *1 -> 0 | I3: =INDEX(Serverboard!F$2:F$13,$B3) *1 -> 0 | K3: =F3+G3+H3 -> 0 | L3: =I3/0.87/12*5 -> 0 | M3: =INDEX(Serverboard!G$2:G$13,$B3) *1 -> 0
A4: Processors 1: | B4: 1 | G4: =(C5-1)*INDEX(Processors!B$2:B$60,$B4)/12/VRMefficiency -> 0 | K4: =F4+G4+H4+I4 -> 0 | L4: =I4/0.87 -> 0 | M4: =K4*12 -> 0 | N4: *This line includes correction factors.
B5: Quantity: | C5: 1
A6: Processors 2: | B6: 1 | H6: =(C7-1)*INDEX(Processors!B$2:B$60,$B6)/12/VRMefficiency -> 0 | K6: =F6+G6+H6+I6 -> 0 | L6: =I6/0.87 -> 0 | M6: =K6*12 -> 0 | N6: *This line includes correction factors.
B7: Quantity: | C7: 1
A9: System Fans: | B9: =IF((B3>1)*AND(B3<10),"3 X 4056 dual rotor fan","") ->  | F9: =IF(B9="",0,6.3) -> 0 | K9: =F9+G9+H9 -> 0 | L9: =I9/0.87/12 -> 0 | M9: =K9*12 -> 0
A10: CPU 1 Memory: | B10: 1 | C10: 1 | G10: =(C10-1)*INDEX(Memory!B$4:B$16,$B10)/12/0.9 -> 0 | K10: 0 | L10: 0 | M10: =G10*12 -> 0
A11: CPU 2 Memory: | B11: 1 | C11: 1 | H11: =(C11-1)*INDEX(Memory!B$4:B$16,$B11)/12/0.9 -> 0 | K11: 0 | L11: 0 | M11: =H11*12 -> 0
A12: PCIe Slot 1: | B12: 1 | D12: =INDEX(PCI!B$2:B$8,$B12) -> 0 | E12: =INDEX(PCI!C$2:C$8,$B12) -> 0 | F12: =INDEX(PCI!D$2:D$8,$B12)+((D12*3.3)/12)/$P$2+((E12*5)/12)/$Q$2 -> 0 | K12: 0 | L12: 0 | M12: =F12*12 -> 0
A14: PCIe Slot 2: | B14: 1 | D14: =INDEX(PCI!B$10:B$15,$B14) -> 0 | E14: =INDEX(PCI!C$10:C$15,$B14) -> 0 | F14: =INDEX(PCI!D$10:D$15,$B14)+((D14*3.3)/12)/$P$2+((E14*5)/12)/$Q$2 -> 0 | K14: 0 | L14: 0 | M14: =F14*12 -> 0
A15: M.2: | B15: 1 | F15: =INDEX(HardDrive!D$25:D$30,$B15) -> 0 | K15: 0 | L15: 0 | M15: =F15*12 -> 0
B17: Compute Module 1 SubTotals: | F17: =SUM(F4:F14) -> 0 | G17: =SUM(G4:G14) -> 0 | H17: =SUM(H6:H14) -> 0 | I17: =SUM(I4:I14) -> 0 | K17: =SUM(K4:K14) -> 0 | L17: =SUM(L4:L14) -> 0 | M17: =SUM(M3:M14) -> 0 | O17: CPU1 | P17: CPU2 | Q17: DIMM1 | R17: DIMM2
B18: CLST Allowance: | K18: =M18/12 -> 0 | L18: 0 | M18: =SUM(O18:R18) -> 0 | O18: =IF(B4>1,INDEX(Processors!G2:G54,$B4)*(C5-1),0) -> 0 | P18: =IF(B6>1,INDEX(Processors!G2:G54,$B6)*(C7-1),0) -> 0 | Q18: =IF(C10>1,INDEX(Memory!Q4:T14,'Configure Module 2'!B10,$C10-1),0) -> 0 | R18: =IF(C11>1,INDEX(Memory!Q4:T14,'Configure Module 2'!B11,$C11-1),0) -> 0

Sheet Configure Module 3
A1: Power Budget | B1: =CONCATENATE("Compute Module 3: ",INDEX(Serverboard!A$2:A$13,$B3)," Configuration") -> Compute Module 3: (Select Serverboard) Configuration | O1: CPU VRM Efficiency | P1: 3.3v VRM Efficiency | Q1: 5v VRM Efficiency
A2: Serverboard Feature | B2: Description | D2: +3.3V (amps) | E2: +5V (amps) | F2: +12V (amps) | G2: 12V CPU1 (amps) | H2: 12V CPU2 (amps) | I2: 5V stby (amps) | J2: Max 3.3v/5v (watts) | K2: 12V MAIN (Amps) | L2: 12V Stby (Amps) | M2: Power (Watts) | O2: =INDEX(Serverboard!H$2:H$11,$B3) -> 1 | P2: =INDEX(Serverboard!I$2:I$11,$B3) -> 1 | Q2: =INDEX(Serverboard!J$2:J$11,$B3) -> 1
A3: Computer Node: | B3: 1 | D3: =INDEX(Serverboard!B$2:B$13,$B3) *1 -> 0 | E3: =INDEX(Serverboard!C$2:C$13,$B3) *1 -> 0 | F3: =INDEX(Serverboard!D$2:D$13,$B3) *1 -> 0 | I3: =INDEX(Serverboard!F$2:F$13,$B3) *1 -> 0 | K3: =F3+G3+H3 -> 0 | L3: =I3/0.87/12*5 -> 0 | M3: =INDEX(Serverboard!G$2:G$13,$B3) *1 -> 0
A4: Processors 1: | B4: 1 | G4: =(C5-1)*INDEX(Processors!B$2:B$60,$B4)/12/VRMefficiency -> 0 | K4: =F4+G4+H4+I4 -> 0 | L4: =I4/0.87 -> 0 | M4: =K4*12 -> 0 | N4: *This line includes correction factors.
B5: Quantity: | C5: 1
A6: Processors 2: | B6: 1 | H6: =(C7-1)*INDEX(Processors!B$2:B$60,$B6)/12/VRMefficiency -> 0 | K6: =F6+G6+H6+I6 -> 0 | L6: =I6/0.87 -> 0 | M6: =K6*12 -> 0 | N6: *This line includes correction factors.
B7: Quantity: | C7: 1
A9: System Fans: | B9: =IF((B3>1)*AND(B3<10),"3 X 4056 dual rotor fan","") ->  | F9: =IF(B9="",0,6.3) -> 0 | K9: =F9+G9+H9 -> 0 | L9: =I9/0.87/12 -> 0 | M9: =K9*12 -> 0
A10: CPU 1 Memory: | B10: 1 | C10: 1 | G10: =(C10-1)*INDEX(Memory!B$4:B$16,$B10)/12/0.9 -> 0 | K10: 0 | L10: 0 | M10: =G10*12 -> 0
A11: CPU 2 Memory: | B11: 1 | C11: 1 | H11: =(C10-1)*INDEX(Memory!B$4:B$16,$B10)/12/0.9 -> 0 | K11: 0 | L11: 0 | M11: =H11*12 -> 0
A12: PCIe Slot 1: | B12: 1 | D12: =INDEX(PCI!B$2:B$8,$B12) -> 0 | E12: =INDEX(PCI!C$2:C$8,$B12) -> 0 | F12: =INDEX(PCI!D$2:D$8,$B12)+((D12*3.3)/12)/$P$2+((E12*5)/12)/$Q$2 -> 0 | K12: 0 | L12: 0 | M12: =F12*12 -> 0
A14: PCIe Slot 2: | B14: 1 | D14: =INDEX(PCI!B$10:B$15,$B14) -> 0 | E14: =INDEX(PCI!C$10:C$15,$B14) -> 0 | F14: =INDEX(PCI!D$10:D$15,$B14)+((D14*3.3)/12)/$P$2+((E14*5)/12)/$Q$2 -> 0 | K14: 0 | L14: 0 | M14: =F14*12 -> 0
A15: M.2: | B15: 1 | F15: =INDEX(HardDrive!D$25:D$30,$B15) -> 0 | K15: 0 | L15: 0 | M15: =F15*12 -> 0
B17: Compute Module 1 SubTotals: | F17: =SUM(F4:F14) -> 0 | G17: =SUM(G4:G14) -> 0 | H17: =SUM(H6:H14) -> 0 | I17: =SUM(I4:I14) -> 0 | K17: =SUM(K4:K14) -> 0 | L17: =SUM(L4:L14) -> 0 | M17: =SUM(M3:M14) -> 0 | O17: CPU1 | P17: CPU2 | Q17: DIMM1 | R17: DIMM2
B18: CLST Allowance: | K18: =M18/12 -> 0 | L18: 0 | M18: =SUM(O18:R18) -> 0 | O18: =IF(B4>1,INDEX(Processors!G2:G54,$B4)*(C5-1),0) -> 0 | P18: =IF(B6>1,INDEX(Processors!G2:G54,$B6)*(C7-1),0) -> 0 | Q18: =IF(C10>1,INDEX(Memory!Q4:T14,'Configure Module 3'!B10,$C10-1),0) -> 0 | R18: =IF(C11>1,INDEX(Memory!Q4:T14,'Configure Module 3'!B11,$C11-1),0) -> 0

Sheet Configure Module 4
A1: Power Budget | B1: =CONCATENATE("Compute Module 4: ",INDEX(Serverboard!A$2:A$13,$B3)," Configuration") -> Compute Module 4: (Select Serverboard) Configuration | O1: CPU VRM Efficiency | P1: 3.3v VRM Efficiency | Q1: 5v VRM Efficiency
A2: Serverboard Feature | B2: Description | D2: +3.3V (amps) | E2: +5V (amps) | F2: +12V (amps) | G2: 12V CPU1 (amps) | H2: 12V CPU2 (amps) | I2: 5V stby (amps) | J2: Max 3.3v/5v (watts) | K2: 12V MAIN (Amps) | L2: 12V Stby (Amps) | M2: Power (Watts) | O2: =INDEX(Serverboard!H$2:H$11,$B3) -> 1 | P2: =INDEX(Serverboard!I$2:I$11,$B3) -> 1 | Q2: =INDEX(Serverboard!J$2:J$11,$B3) -> 1
A3: Computer Node: | B3: 1 | D3: =INDEX(Serverboard!B$2:B$13,$B3) *1 -> 0 | E3: =INDEX(Serverboard!C$2:C$13,$B3) *1 -> 0 | F3: =INDEX(Serverboard!D$2:D$13,$B3) *1 -> 0 | I3: =INDEX(Serverboard!F$2:F$13,$B3) *1 -> 0 | K3: =F3+G3+H3 -> 0 | L3: =I3/0.87/12*5 -> 0 | M3: =INDEX(Serverboard!G$2:G$13,$B3) *1 -> 0
A4: Processors 1: | B4: 1 | G4: =(C5-1)*INDEX(Processors!B$2:B$60,$B4)/12/VRMefficiency -> 0 | K4: =F4+G4+H4+I4 -> 0 | L4: =I4/0.87 -> 0 | M4: =K4*12 -> 0 | N4: *This line includes correction factors.
B5: Quantity: | C5: 1
A6: Processors 2: | B6: 1 | H6: =(C7-1)*INDEX(Processors!B$2:B$60,$B6)/12/VRMefficiency -> 0 | K6: =F6+G6+H6+I6 -> 0 | L6: =I6/0.87 -> 0 | M6: =K6*12 -> 0 | N6: *This line includes correction factors.
B7: Quantity: | C7: 1
A9: System Fans: | B9: =IF((B3>1)*AND(B3<10),"3 X 4056 dual rotor fan","") ->  | F9: =IF(B9="",0,6.3) -> 0 | K9: =F9+G9+H9 -> 0 | L9: =I9/0.87/12 -> 0 | M9: =K9*12 -> 0
A10: CPU 1 Memory: | B10: 1 | C10: 1 | G10: =(C10-1)*INDEX(Memory!B$4:B$16,$B10)/12/0.9 -> 0 | K10: 0 | L10: 0 | M10: =G10*12 -> 0
A11: CPU 2 Memory: | B11: 1 | C11: 1 | H11: =(C11-1)*INDEX(Memory!B$4:B$16,$B11)/12/0.9 -> 0 | K11: 0 | L11: 0 | M11: =H11*12 -> 0
A12: PCIe Slot 1: | B12: 1 | D12: =INDEX(PCI!B$2:B$8,$B12) -> 0 | E12: =INDEX(PCI!C$2:C$8,$B12) -> 0 | F12: =INDEX(PCI!D$2:D$8,$B12)+((D12*3.3)/12)/$P$2+((E12*5)/12)/$Q$2 -> 0 | K12: 0 | L12: 0 | M12: =F12*12 -> 0
A14: PCIe Slot 2: | B14: 1 | D14: =INDEX(PCI!B$10:B$15,$B14) -> 0 | E14: =INDEX(PCI!C$10:C$15,$B14) -> 0 | F14: =INDEX(PCI!D$10:D$15,$B14)+((D14*3.3)/12)/$P$2+((E14*5)/12)/$Q$2 -> 0 | K14: 0 | L14: 0 | M14: =F14*12 -> 0
A15: M.2: | B15: 1 | F15: =INDEX(HardDrive!D$25:D$30,$B15) -> 0 | K15: 0 | L15: 0 | M15: =F15*12 -> 0
B17: Compute Module 1 SubTotals: | F17: =SUM(F4:F14) -> 0 | G17: =SUM(G4:G14) -> 0 | H17: =SUM(H6:H14) -> 0 | I17: =SUM(I4:I14) -> 0 | K17: =SUM(K4:K14) -> 0 | L17: =SUM(L4:L14) -> 0 | M17: =SUM(M3:M14) -> 0 | O17: CPU1 | P17: CPU2 | Q17: DIMM1 | R17: DIMM2
B18: CLST Allowance: | K18: =M18/12 -> 0 | L18: 0 | M18: =SUM(O18:R18) -> 0 | O18: =IF(B4>1,INDEX(Processors!G2:G54,$B4)*(C5-1),0) -> 0 | P18: =IF(B6>1,INDEX(Processors!G2:G54,$B6)*(C7-1),0) -> 0 | Q18: =IF(C10>1,INDEX(Memory!Q4:T14,'Configure Module 4'!B10,$C10-1),0) -> 0 | R18: =IF(C11>1,INDEX(Memory!Q4:T14,'Configure Module 4'!B11,$C11-1),0) -> 0

Sheet Serverboard
A1: Serverboard | B1: 3.3 | C1: 5 | D1: 12BB | E1: -12 | F1: 5VSB | G1: Watts | H1: CPU VRM% | I1: 5v VRM% | J1: 3v VRM% | K1: MAX DIMM/socket
A2: (Select Serverboard) | H2: 1 | I2: 1 | J2: 1
A3: HNS2600BPBR | D3: 4.5 | G3: =B3*3.3+C3*5+D3*12+E3*12+F3*5 -> 54 | H3: 0.92 | I3: 0.9 | J3: 0.9 | K3: 8
A4: HNS2600BPQR | D4: 5.08 | G4: 60.96 | H4: 0.92 | I4: 0.9 | J4: 0.9 | K4: 8
A5: HNS2600BPSR | D5: 3.833 | G5: 45.996 | H5: 0.92 | I5: 0.9 | J5: 0.9 | K5: 8
A6: HNS2600BPB24R | D6: 4.5 | G6: 54 | H6: 0.92 | I6: 0.9 | J6: 0.9 | K6: 8
A7: HNS2600BPQ24R | D7: 5.08 | G7: 60.96 | H7: 0.92 | I7: 0.9 | J7: 0.9 | K7: 8
A8: HNS2600BPS24R | D8: 3.833 | G8: 45.996 | H8: 0.92 | I8: 0.9 | J8: 0.9 | K8: 8
A9: HNS2600BPBLCR | D9: 4.83 | G9: =B9*3.3+C9*5+D9*12+E9*12+F9*5 -> 57.96 | H9: 0.92 | I9: 0.9 | J9: 0.9 | K9: 8
A10: HNS2600BPBLC24R | D10: 4.83 | G10: =B10*3.3+C10*5+D10*12+E10*12+F10*5 -> 57.96 | H10: 0.92 | I10: 0.9 | J10: 0.9 | K10: 8
A11: User Definable | G11: =B11*3.3+C11*5+D11*12+E11*12+F11*5 -> 0 | L11: <-- Define Custom Numbers Here

Sheet Chassis Definition
A1: Chassis | B1: PS limits | H1: Max W | I1: Total | J1: Fans | K1: PCI | L1: Max | M1: HSBP | N1: PS Eff%
A2: Selection | B2: Form factor | C2: 5V | D2: 12V 230VAC | E2: 12V 115VAC | F2: 12VStby | G2: 5VSB | H2: 3.3v/5v | I2: Watts | J2: 12V | K2: slots | L2: HDD | M2: VR Eff% | N2: 220v | O2: 110v
A3: (Select Chassis) | D3: 0 | E3: 0 | F3: 0 | J3: 0 | L3: 0 | M3: 1 | N3: 1 | O3: 1
A4: H2312XXLR3 (2X 2130W CRPS) | B4: 2U | D4: 163 | E4: 104 | F4: 3.5 | J4: 0 | L4: 3 | M4: 0.95 | N4: 0.94 | O4: 0.92
A5: H2224XXLR3 (2X 2130W CRPS) | B5: 2U | D5: 163 | E5: 104 | F5: 3.5 | J5: 0 | L5: 6 | M5: 0.95 | N5: 0.94 | O5: 0.92
A6: H2204XXLRE (2x2130W CRPS) | B6: 2U | D6: 163 | E6: 104 | F6: 3.5 | J6: 0 | L6: 1 | M6: 0.95 | N6: 0.94 | O6: 0.92
A7: User Definable
A8: User Definable
A9: User Definable
A10: User Definable | I10: =D10*12+E10*12+F10*12+G10*5 -> 0 | P10: <-- Define Custom Numbers Here
A11: User Definable | I11: =D11*12+E11*12+F11*12+G11*5 -> 0 | P11: <-- Define Custom Numbers Here
A12: User Definable | I12: =D12*12+E12*12+F12*12+G12*5 -> 0 | P12: <-- Define Custom Numbers Here
A16: Note: HS Fan (Y/N) determines if an Active Heatsink (Heatsink with Fan) in Intel® Boxed Processors is used (adds fan power to budget)
A17: Note: PS Eff is estimate @ typ voltage & 35% to 90% loading based on PS measurement data.
A29: Chassis | B29: PS limits | H29: Max W | I29: Total | J29: Fans | K29: PCI | L29: Max | M29: HSBP | N29: PS Eff%
A30: Selection | B30: 3V | C30: 5V | D30: 12VBB | E30: 12V CPU1 | F30: 12V CPU2 | G30: 5VSB | H30: 3.3v/5v | I30: Watts | J30: 12V | K30: slots | L30: HDD | M30: VR Eff% | N30: 110v | O30: 220v
A31: (Select Chassis) | L31: 99 | M31: 1 | N31: 1 | O31: 1
A32: Example 1

Sheet Processors
A1: Processor Types | B1: TDP (W) | C1: HS Fan (A) | D1: Source | G1: CLST Saving
A2: (Select Processor)
A3: Intel® Xeon® Gold 6262 Processor (33M Cache, 1.90 GHz) | B3: 135 | F3: 45 | G3: 87
A4: Intel® Xeon® Gold 6238L Processor (30.25M Cache, 2.10 GHz) | B4: 140 | F4: 40 | G4: =(B4-F4)*0.8 -> 80
A5: Intel® Xeon® Gold 6252 Processor (35.75M Cache, 2.10 GHz) | B5: 150 | F5: 40 | G5: 68
A6: Intel® Xeon® Gold 6248 Processor (27.5M Cache, 2.50 GHz) | B6: 150 | F6: 40 | G6: 87
A7: Intel® Xeon® Gold 6244 Processor (24.75M Cache, 3.60 GHz) | B7: 150 | F7: 40 | G7: 75
A8: Intel® Xeon® Gold 6242 Processor (22M Cache, 2.80 GHz) | B8: 150 | F8: 40 | G8: 75
A9: Intel® Xeon® Gold 6240Y Processor (24.75M Cache, 2.60 GHz) | B9: 150 | F9: 35 | G9: 50
A10: Intel® Xeon® Gold 6240 Processor (24.75M Cache, 2.60 GHz) | B10: 150 | F10: 35 | G10: 70
A11: Intel® Xeon® Gold 6238T Processor (30.25M Cache, 1.90 GHz) | B11: 125 | F11: 35 | G11: 50
A12: Intel® Xeon® Gold 6230N Processor (27.5M Cache, 2.30 GHz) | B12: 125 | F12: 40 | G12: 68
A13: Intel® Xeon® Gold 6230 Processor (27.5M Cache, 2.10 GHz) | B13: 125 | F13: 35 | G13: 50
A14: Intel® Xeon® Gold 6222 Processor (27.5M Cache, 1.80 GHz) | B14: 115 | F14: 35 | G14: 49
A15: Intel® Xeon® Gold 5222 Processor (16.5M Cache, 3.80 GHz) | B15: 105 | F15: 35 | G15: 44
A16: Intel® Xeon® Gold 5218 Processor (22M Cache, 2.30 GHz) | B16: 125 | F16: 30 | G16: 40
A17: Intel® Xeon® Gold 6238M Processor (30.25M Cache, 2.10 GHz) | B17: 140 | F17: 30 | G17: 51
A18: Intel® Xeon® Gold 6240L Processor (24.75M Cache, 2.60 GHz) | B18: 150 | F18: 30 | G18: =(B18-F18)*0.8 -> 96
A19: Intel® Xeon® Gold 6240M Processor (24.75M Cache, 2.60 GHz) | B19: 150 | F19: 30 | G19: 57
A20: Intel® Xeon® Platinum 8276M Processor (38.5M Cache, 2.20 GHz) | B20: 165 | F20: 30 | G20: 49
A21: Intel® Xeon® Platinum 8276L Processor (38.5M Cache, 2.20 GHz) | B21: 165 | F21: 25 | G21: 57
A22: Intel® Xeon® Platinum 8276 Processor (38.5M Cache, 2.20 GHz) | B22: 165 | F22: 25 | G22: 90
A23: Intel® Xeon® Gold 6262V Processor (33M Cache, 1.90 GHz) | B23: 135 | G23: 73
A24: Intel® Xeon® Gold 6222V Processor (27.5M Cache, 1.80 GHz) | B24: 115 | G24: 65
A25: Intel® Xeon® Platinum 8260Y Processor (35.75M Cache, 2.40 GHz) | B25: 165 | G25: 70
A26: Intel® Xeon® Platinum 8260M Processor (35.75M Cache, 2.40 GHz) | B26: 165 | G26: 81
A27: Intel® Xeon® Platinum 8260L Processor (35.75M Cache, 2.40 GHz) | B27: 165 | G27: 65
A28: Intel® Xeon® Platinum 8260 Processor (35.75M Cache, 2.40 GHz) | B28: 165 | G28: 84
A29: Intel® Xeon® Platinum 8256 Processor (16.5M Cache, 3.80 GHz) | B29: 105 | G29: 81
A30: Intel® Xeon® Platinum 8253 Processor (22M Cache, 2.20 GHz) | B30: 125 | G30: 87
A31: Intel® Xeon® Silver 4214 Processor (16.5M Cache, 2.20 GHz) | B31: 85 | G31: 65
A32: Intel® Xeon® Silver 4215 Processor ( 11M Cache, 2.50 GHz) | B32: 85 | G32: 50
A33: Intel® Xeon® Silver 4216 Processor (22M Cache, 2.10 GHz) | B33: 100 | G33: 61
A34: Intel® Xeon® Gold 5215 Processor ( 13.75M Chace, 2.50 GHz) | B34: 85 | G34: 55
A35: Intel® Xeon® Gold 5215L Processor (13.75M Cache, 2.50 GHz) | B35: 85 | G35: 52
A36: Intel® Xeon® Gold 5215M Processor (13.5M Cache, 2.50 GHz) | B36: 85 | G36: 42
A37: Intel® Xeon® Gold 5217 Processor (11M Cache, 3.00 GHz) | B37: 115 | G37: 55
A38: Intel® Xeon® Gold 5218N Processor (22M Cache, 2.30 GHz) | B38: 105 | G38: 47
A39: Intel® Xeon® Gold 5220 Processor (24.75M Cache, 2.20 GHz) | B39: 125 | G39: 52
A40: Intel® Xeon® Silver 4214Y Processor (16.5M Cache, 2.20 GHz) | B40: 85 | G40: 46
A41: Intel® Xeon® Gold 5218B Processor (22M Cache, 2.30 GHz) | B41: 125 | G41: 47
A42: Intel® Xeon® Silver 4210 Processor (13.75M Cache, 2.20 GHz) | B42: 85 | G42: 50
A43: Intel® Xeon® Silver 4208 Processor (11M Cache, 2.10 GHz) | B43: 85 | G43: 54
A44: Intel® Xeon® Bronze 3204 Processor (8.25M Cache, 1.90 GHz) | B44: 85 | G44: 43
A45: Intel® Xeon® Silver 4209T Processor (11M Cache, 2.20 GHz) | B45: 70 | G45: 50
A46: Intel® Xeon® Gold 6246 Processor (24.75M Cache, 3.30 GHz) | B46: 165 | G46: 54
A47: Intel® Xeon® Gold 5220T Processor (24.75M Cache, 1.96 GHz) | B47: 105 | G47: 49
A48: Intel® Xeon® Gold 6238 Processor (30.25M Cache, 2.10 GHz) | B48: 140
A49: Intel® Xeon® Gold 5218T Processor (22M Cache, 2.10 GHz) | B49: 105
A50: Intel® Xeon® Gold 6234 Processor (24.75M Cache, 3.30 GHz) | B50: 130
A51: Intel® Xeon® Gold 6226 Processor (19.25M Cache, 2.70 GHz) | B51: 125
A52: Intel® Xeon® Gold 6252N Processor (35.75M Cache, 2.30 GHz) | B52: 150
A53: Intel® Xeon® Gold 6230T Processor (27.5M Cache, 2.10 GHz) | B53: 125
A54: Intel® Xeon® Gold 5220S Processor (24.75M Cache, 2.70 GHz) | B54: 125
A61: 0
A62: 1

Sheet Memory
B1: Watts of +12V
B2: # of DIMMS | M2: Hi Stress DIMM P | O2: Min Throtted P | Q2: CLST Saving
A3: Memory | B3: 1 | C3: 2 | D3: 6 | E3: 8 | M3: 1DPC | N3: 2DPC | O3: 1DPC | P3: 2DPC | Q3: 1 | R3: 2 | S3: 4 | T3: 8
A4: (Select Memory) | B4: 0 | C4: 0 | D4: 0 | E4: 0
A5: 4GB DDR4 RDIMM (4Gb, SRx8) | B5: =M5*1 -> 3 | C5: =M5*2 -> 6 | D5: =M5*6 -> 18 | E5: =N5*4+M5*4 -> 21.2 | M5: 3 | N5: 2.3 | O5: 2 | P5: 1.6 | Q5: =B5-O5 -> 1 | R5: =(M5-O5)*2 -> 2 | S5: =(M5-O5)*4 -> 4 | T5: =(N5-P5)*8 -> 5.6
A6: 8GB DDR4 RDIMM (4Gb, SRx4) | B6: 4.8 | C6: =M6*2 -> 8 | D6: =M6*6 -> 24 | E6: =N6*4+M6*4 -> 28 | M6: 4 | N6: 3 | O6: 2.2 | P6: 2 | Q6: =B6-O6 -> 2.6 | R6: =(M6-O6)*2 -> 3.6 | S6: =(M6-O6)*4 -> 7.2 | T6: =(N6-P6)*8 -> 8
A7: 8GB DDR4 RDIMM (8Gb, SRx8) | B7: 3.5 | C7: 6 | D7: 18 | E7: 21.2 | M7: 3 | N7: 2.3 | O7: 2 | P7: 1.6 | Q7: 1.5 | R7: 2 | S7: 4 | T7: 5.6
A8: 8GB DDR4 RDIMM (4Gb, DRx8) | B8: 3.8 | C8: 7.2 | D8: 21.6 | E8: 25.2 | M8: 3.6 | N8: 2.7 | O8: 2.8 | P8: 2 | Q8: 1 | R8: 1.6 | S8: 3.2 | T8: 5.6
A9: 16GB DDR4 RDIMM (8Gb, SRx4) | B9: 5.2 | C9: 8 | D9: 24 | E9: 28 | M9: 4 | N9: 3 | O9: 2.2 | P9: 2 | Q9: 3 | R9: 3.6 | S9: 7.2 | T9: 8
A10: 16GB DDR4 RDIMM (4Gb, DRx4) | B10: 5.7 | C10: 12.6 | D10: 37.8 | E10: 44.1 | M10: 6.3 | N10: 4.725 | O10: 3.6 | P10: 3.3 | Q10: 2.1 | R10: 5.4 | S10: 10.8 | T10: 11.4
A11: 16GB DDR4 RDIMM (8Gb, DRx8) | B11: 4.2 | C11: 7.2 | D11: 21.6 | E11: 25.2 | M11: 3.6 | N11: 2.7 | O11: 2.8 | P11: 2 | Q11: 1.4 | R11: 1.6 | S11: 3.2 | T11: 5.6
A12: 32GB DDR4 RDIMM (8Gb, DRx4) | B12: 6.5 | C12: 12.6 | D12: 37.8 | E12: 44.1 | M12: 6.3 | N12: 4.725 | O12: 3.6 | P12: 3.3 | Q12: 2.9 | R12: 5.4 | S12: 10.8 | T12: 11.4
A13: 32GB DDR4 LRDIMM (4Gb, QRx4) | B13: 9.4 | C13: 21.2 | D13: 63.6 | E13: 74.4 | M13: 10.6 | N13: 8 | O13: 6.8 | P13: 6.4 | Q13: 2.6 | R13: 7.6 | S13: 15.2 | T13: 12.8
A14: 64GB DDR4 LRDIMM (8Gb, QRx4) | B14: 11.1 | C14: 22 | D14: 66 | E14: 77 | M14: 11 | N14: 8.25 | O14: 6.8 | P14: 6.4 | Q14: 4.3 | R14: 8.4 | S14: 16.8 | T14: 14.8
A15: 128GB AEP | B15: 15 | K15: <-- Define Custom Numbers Here
A16: 256GB AEP | B16: 18 | K16: <-- Define Custom Numbers Here
A17: User Definable | K17: <-- Define Custom Numbers Here
A21: Note:
A22: DIMM power will vary depending on the # of DIMMs & the actual strees/bandwidth used.
A24: 0
A25: 1
A26: 2
A27: 3
A28: 4
A29: 5
A30: 6
A31: 7
A32: 8
A35: EP-DDR4 | B35: Frequency | D35: min Throttled BW/DIMM | F35: min DIMM P | H35: Hi Stress DIMM P | J35: Acoustic DIMM P | L35: Min Throtted DIMM P
A36: EP | B36: 1DPC | C36: 2DPC | D36: 1DPC | E36: 2DPC | F36: 1DPC | G36: 2DPC | H36: 1DPC | I36: 2DPC | J36: 1DPC | K36: 2DPC | L36: 1DPC | M36: 2DPC
A37: LR-DIMM 3D4S 8Rx4 (4Gb-8Gb not available) | B37: 2400 | C37: 2133 | D37: 1.9 | E37: 0.9 | F37: 0 | G37: 0 | H37: 0 | I37: 0 | J37: 0 | K37: 0 | L37: 0 | M37: 0
A38: LRDIMM DDP-QRx4 | B38: 2400 | C38: 2133 | D38: 1.9 | E38: 0.9 | F38: 8.3 | G38: 7.1 | H38: 11.3 | I38: 8.7 | J38: 7.3 | K38: 6.6 | L38: 6.8 | M38: 6.4 | N38: =I38/H38 -> 0.7699115044
A39: RDIMM-DRx4 | B39: 2400 | C39: 2133 | D39: 1.9 | E39: 0.9 | F39: 4.5 | G39: 3.8 | H39: 6.3 | I39: 4.6 | J39: 3.9 | K39: 3.5 | L39: 3.6 | M39: 3.3 | N39: =I39/H39 -> 0.7301587302
A40: RDIMM-2Rx8, 1Rx4 | B40: 2400 | C40: 2133 | D40: 1.9 | E40: 0.9 | F40: 2.8 | G40: 2.3 | H40: 4 | I40: 3 | J40: 2.4 | K40: 2.1 | L40: 2.2 | M40: 2 | N40: =I40/H40 -> 0.75

Sheet PCI
A1: PCIe slot 1 Add in Cards | B1: Amps of +3.3V | C1: Amps of +5V | D1: Amps of +12VBB | E1: Amps of -12V | F1: Watts
A2: Slot Empty
A3: PCIe 5W | D3: 0.44 | F3: =B3*3.3+C3*5+D3*12+E3*12 -> 5.28
A4: PCIe10W | D4: 0.83 | F4: 9.96
A5: PCIe15W | D5: 1.25 | F5: 15
A6: PCIe SSD 25W | D6: 2.083 | F6: 24.996 | G6: <-- Define Custom Card Here
A7: User Definable | F7: 0 | G7: <-- Define Custom Card Here
A8: User Definable | F8: 0 | G8: <-- Define Custom Card Here
A9: PCIe slot 2 Add in Cards | B9: Amps of +3.3V | C9: Amps of +5V | D9: Amps of +12VBB | E9: Amps of -12V | F9: Watts
A10: Slot Empty
A11: PCIe 5W | D11: 0.44 | F11: =B11*3.3+C11*5+D11*12+E11*12 -> 5.28
A12: PCIe10W | D12: 0.83 | F12: =B12*3.3+C12*5+D12*12+E12*12 -> 9.96
A13: PCIe15W | D13: 1.25 | F13: =B13*3.3+C13*5+D13*12+E13*12 -> 15
A14: PCIe SSD 25W | D14: 2.083 | F14: =B14*3.3+C14*5+D14*12+E14*12 -> 24.996 | G14: <-- Define Custom Card Here
A15: User Definable | G15: <-- Define Custom Card Here

Sheet HSBP
A1: Backplane / Midplane | B1: +3.3V (A) | C1: +5V (A) | D1: +12VMAIN | E1: -12V (A) | F1: 5vsb (A) | G1: W
A2: Select Backplane or Midplane | B2: 0 | C2: 0 | D2: 0 | E2: 0 | F2: 0 | G2: =E2*(-12)+D2*12+C2*5+B2*3.3 -> 0
A3: 12 X 3.5'' Passive BP (FH2K12X35HSBP) | D3: =0.2+0.4 -> 0.6 | G3: =B3*3.3+C3*5+D3*12+E3*12+F3*5 -> 7.2
A4: 24X 2.5" Passive BP (FHW24X25HSBP) | D4: =1.3+0.4 -> 1.7 | G4: =B4*3.3+C4*5+D4*12+E4*12+F4*5+5 -> 25.4
A5: 4x3.5" Passive BP (FHW04X35HSBP) | D5: 0.3 | G5: =B5*3.3+C5*5+D5*12+E5*12+F5*5 -> 3.6
G6: =F6*5+E6*(12)+D6*12+C6*5+B6*3.3 -> 0 | H6: <-- Define Custom Peripherals Here
H7: <-- Define Custom Peripherals Here
H8: <-- Define Custom Peripherals Here

Sheet HardDrive
A1: Hard Drives | B1: Amps of +3.3V | C1: Amps of +5V | D1: Amps of +12V | E1: Watts
A2: Empty | E2: =C2*5+D2*12 -> 0
A3: 3.5" SATA Typical Power (12W) | C3: 0.5 | D3: 0.8 | E3: 12.1
A4: 3.5" SAS Typical Power (15W) | C4: 0.8 | D4: 0.92 | E4: 15.04
A5: 2.5" SATA Typical Power (5W) | C5: 1 | D5: 0 | E5: 5
A6: 2.5" SAS Typical Power (9W) | C6: 0.81 | D6: 0.41 | E6: 8.97
A7: 2.5" SATA SSD Typical Power (5W) | C7: 1 | D7: 0 | E7: =C7*5+D7*12 -> 5
A8: User Definable | E8: 0 | F8: <-- Define Custom Device Here
A9: User Definable | E9: 0 | F9: <-- Define Custom Device Here
A10: User Definable | E10: 0 | F10: <-- Define Custom Device Here
A15: PCIe SSD | B15: Amps of +3.3V | C15: Amps of +5V | D15: Amps of +12V | E15: Watts
A16: Empty | E16: =C16*5+D16*12 -> 0
A17: Intel® SSD DC P3700/P3600/P3500 Series 2.5" FF, 2.0TB | D17: 2.08 | E17: 24.96
A18: Intel® SSD DC P3700/P3600/P3500 Series 2.5" FF, 400GB | D18: 0.67 | E18: =C18*5+D18*12 -> 8.04
A19: User Definable | E19: 0 | F19: <-- Define Custom Device Here
A20: User Definable | E20: 0 | F20: <-- Define Custom Device Here
A21: User Definable | E21: 0 | F21: <-- Define Custom Device Here
A24: M.2 | B24: Amps of +3.3V | C24: Amps of +5V | D24: Amps of +12V | E24: Watts
A25: Empty | E25: =C25*5+D25*12 -> 0
A26: PCIe 80mm M.2 Typical Power | D26: 0.458 | E26: 5.496
A27: SATA 42mm M.2 Typical Power | D27: 0.2 | E27: 2.4
A28: User Definable | E28: 0 | F28: <-- Define Custom Device Here
A29: User Definable | E29: 0 | F29: <-- Define Custom Device Here
A30: User Definable | E30: 0 | F30: <-- Define Custom Device Here

Sheet Peripherals
A1: Misc Peripherals | B1: Amps of +3.3V | C1: Amps of +5V | D1: Amps of +12V | E1: Amps of -12V | F1: Amps of 3vsb | G1: Watts
A2: Slim-Line Devices
A3: Empty
A4: Empty
A5: User Definable | C5: 0.6 | G5: =B5*3.3+C5*5+D5*12+E5*12+F5*5 -> 3 | H5: <-- Define Custom Peripherals Here
A6: User Definable | G6: =B6*3.3+C6*5+D6*12+E6*12+F6*5 -> 0 | H6: <-- Define Custom Peripherals Here
A7: User Definable | G7: =B7*3.3+C7*5+D7*12+E7*12+F7*5 -> 0 | H7: <-- Define Custom Peripherals Here
A8: User Definable | G8: =B8*3.3+C8*5+D8*12+E8*12+F8*5 -> 0 | H8: <-- Define Custom Peripherals Here
A9: User Definable | G9: =B9*3.3+C9*5+D9*12+E9*12+F9*5 -> 0 | H9: <-- Define Custom Peripherals Here
A10: Other Peripheral Devices
A11: Empty
A12: Empty
A13: USB floppy drive | C13: 0.5 | G13: =B13*3.3+C13*5+D13*12+E13*12+F13*5 -> 2.5
A14: User Definable | G14: 0 | H14: <-- Define Custom Peripherals Here
A15: User Definable | G15: 0 | H15: <-- Define Custom Peripherals Here
A16: User Definable | G16: 0 | H16: <-- Define Custom Peripherals Here
A17: User Definable | G17: 0 | H17: <-- Define Custom Peripherals Here
A18: User Definable | G18: 0 | H18: <-- Define Custom Peripherals Here

Sheet Taylor Pass_Normal (hidden)
A1: Notes: 1. 27°C is limited to elevations of 900m or less 2. Quad Port IO Modules cannot be installed simultaneously with PCI Cards. 3. Processor - may have significent performance impact. 4. Processors - There may be some performance impact during fan failures. 5. For A3/A4 individual PS selection: 1) For dual power supply configuration, power budget must fit within single power supply rated load and be installed in dual configuration 2) For single power supply configuration, power budget must be sized with 30% margin to single power supply rated load. 6. When identifying memory in the table, only Rank and Width are required. Capacity is not required. 7. Processor limited to 90W to support 1.5W AOC cable. Processor limited to 90W and memory limited to DRx4 to support 2W AOC cable. 8. Supported with one HDD per node configuration. | C1: Base System SKUs: H2216TLP | G1: Base System SKUs: H2312TLP | L1: Base System SKUs: H2224TLP
A2: ASHRAE (See note 1) | B2: Classifications | C2: A2 | D2: 27C | E2: A3 | F2: A4 | G2: 27C | H2: A2 | I2: A2 | J2: A3 | K2: A4 | L2: 27C | M2: A2 | N2: A2 | O2: A3 | P2: A4
B3: Max Ambient | C3: 35C | D3: 27C | E3: 40C | F3: 45C | G3: 27C | H3: 35C | I3: 35C | J3: 40C | K3: 45C | L3: 27C | M3: 35C | N3: 35C | O3: 40C | P3: 45C | Q3: <-- See note 1
A4: PS (See note 5) | B4: Power Supplies | C4: See Note 5 | G4: See Note 5 | L4: See Note 5
A5: EP Processors (See notes 3 and 4) | B5: EP, 135w, 12C (Intel® Xeon® processor E5-2690 V3) | C5: ● | D5: ● | E5: ● | G5: ● | I5: ● | L5: ● | N5: ●
B6: EP, 120w, 12C (Intel® Xeon® processor E5-2680 V3, E5-2670 V3) | C6: ● | D6: ● | E6: ● | G6: ● | I6: ● | L6: ● | N6: ●
B7: EP, 105w, 10C (Intel® Xeon® processor E5-2660 V3, E5-2650 V3) | C7: ● | D7: ● | E7: ● | G7: ● | I7: ● | L7: ● | N7: ●
B8: EP, 90w, 8C (Intel® Xeon® processor E5-2640 V3) | C8: ● | D8: ● | E8: ● | F8: ● | G8: ● | H8: ● | I8: ● | J8: 3,4 | L8: ● | M8: ● | N8: ● | O8: 3,4
B9: EP, 85w,8C,6C (Intel® Xeon® processor E5-2630 V3, E5-2620 V3, E5-2609 V3, E5-2603 V3) | C9: ● | D9: ● | E9: ● | F9: ● | G9: ● | H9: ● | I9: ● | J9: 3,4 | K9: 3 | L9: ● | M9: ● | N9: ● | O9: 3,4 | P9: 3
B10: EP, 135w, 8C,6C,4C (Intel® Xeon® processor E5-2667 V3, E5-2643 V3, E5-2637 V3) | C10: 3,4 | D10: ● | G10: 3,4 | L10: 3,4
B11: EP, 105w, 4C (Intel® Xeon® processor E5-2623 V3) | C11: ● | D11: ● | E11: ● | G11: ● | I11: ● | L11: ● | N11: ●
B12: EP, 65w, 12C (Intel® Xeon® processor E5-2650L V3) | C12: ● | D12: ● | E12: ● | F12: ● | G12: ● | H12: ● | I12: ● | J12: 3,4 | K12: 3 | L12: ● | M12: ● | N12: ● | O12: 3,4 | P12: 3
B13: EP, 55w, 8C (Intel® Xeon® processor E5-2630L V3) | C13: ● | D13: ● | E13: ● | F13: ● | G13: ● | H13: ● | I13: ● | J13: 3,4 | K13: 3 | L13: ● | M13: ● | N13: ● | O13: 3,4 | P13: 3
B14: EP, 145w, 14C,18C (Intel® Xeon® processor E5-2697 V3, E5-2699 V3) | C14: 3,4 | D14: ● | G14: 3,4 | L14: 3,4
B15: EP, 135w, 16C (Intel® Xeon® processor E5-2698 V3) | C15: 3,4 | D15: ● | G15: 3,4 | L15: 3,4
B16: EP, 120w, 14C (Intel® Xeon® processor E5-2695 V3, E5-2683 V3) | C16: 3,4 | D16: ● | G16: 3,4 | L16: 3,4
A17: Memory Type (See note 6) | B17: RDIMM-2Rx8,1Rx4 | C17: ● | D17: ● | E17: ● | F17: ● | G17: ● | H17: ● | I17: ● | J17: ● | K17: ● | L17: ● | M17: ● | N17: ● | O17: ● | P17: ●
B18: RDIMM-DRx4 | C18: ● | D18: ● | E18: ● | F18: ● | G18: ● | H18: ● | I18: ● | J18: ● | K18: ● | L18: ● | M18: ● | N18: ● | O18: ● | P18: ●
B19: LRDIMM-QRx4 DDP | C19: ● | D19: ● | E19: ● | F19: ● | G19: ● | H19: ● | I19: ● | J19: ● | L19: ● | M19: ● | N19: ● | O19: ●
A20: Add-in Cards (See note 2) | B20: PCI Cards with 100LFM/55C spec | C20: ● | D20: ● | E20: ● | F20: ● | G20: ● | H20: ● | I20: ● | J20: ● | K20: ● | L20: ● | M20: ● | N20: ● | O20: ● | P20: ●
B21: PCI Cards With 200LFM/55C spec | C21: ● | D21: ● | G21: 8 | H21: ● | I21: 8 | L21: 8 | M21: ● | N21: 8 | Q21: <-- See note 2
B22: PCI Cards With 300LFM/55C spec | D22: ● | H22: 8 | M22: 8 | Q22: <-- See note 2
A23: Module (See note 2) | B23: AXX10GBTWLIOM - Dual 10GBASE-T IO Module | C23: ● | D23: ● | E23: ● | F23: ● | G23: ● | H23: ● | I23: ● | J23: ● | K23: ● | L23: ● | M23: ● | N23: ● | O23: ● | P23: ●
B24: AXX10GBNIAIOM - Dual SFP+ port 10GbE IO Module | C24: ● | D24: ● | E24: ● | F24: ● | G24: ● | H24: ● | I24: ● | J24: ● | K24: ● | L24: ● | M24: ● | N24: ● | O24: ● | P24: ●
B25: AXX1FDRIBIOM - Single Port FDR Infiniband IO Module | C25: ● | D25: ● | E25: ● | F25: ● | G25: ● | H25: ● | I25: ● | J25: ● | K25: ● | L25: ● | M25: ● | N25: ● | O25: ● | P25: ●
B26: AXX2FDRIBIOM - Dual Port FDR Infiniband IO Module | C26: ● | D26: ● | E26: ● | F26: ● | G26: ● | H26: ● | I26: ● | J26: ● | K26: ● | L26: ● | M26: ● | N26: ● | O26: ● | P26: ●
B27: AXX4P1GBPWLIOM - Quad Port 1GbE IO Module | C27: ● | D27: ● | E27: ● | F27: ● | G27: ● | H27: ● | I27: ● | J27: ● | K27: ● | L27: ● | M27: ● | N27: ● | O27: ● | P27: ● | Q27: <-- See note 2
A28: QSFP Cables (See note 7) | B28: Passive Cable | C28: ● | D28: ● | E28: ● | F28: ● | G28: ● | H28: ● | I28: ● | J28: ● | K28: ● | L28: ● | M28: ● | N28: ● | O28: ● | P28: ●
B29: Active Optical Cable (1.5W) | C29: ● | D29: ● | G29: ● | H29: ● | I29: 7 | L29: ● | M29: ● | N29: 7
B30: Active Optical Cable (2W) | D30: ● | H30: ● | I30: 7 | M30: ● | N30: 7 | Q30: <-- See note 7

Sheet Taylor Pass_Fan Fail (hidden)
A1: Notes: 1. 27°C is limited to elevations of 900m or less 2. Quad Port IO Modules cannot be installed simultaneously with PCI Cards. 3. Processor - 135W - 4/6/8/16C, 120W-14C and 145W - 14/18C may have some performance impact. 4. Processors - There may be some performance impact during fan failures. 5. For A3/A4 individual PS selection: 1) For dual power supply configuration, power budget must fit within single power supply rated load and be installed in dual configuration, or 2) For single power supply configuration, power budget must be sized with 30% margin to single power supply rated load. 6. When identifying memory in the table, only Rank and Width are required. Capacity is not required. 7. Processor limited to 90W to support 1.5W AOC cable. Processor limited to 90W and memory limited to DRx4 to support 2W AOC cable. 8. Fan fail is not supported at A3/A4 | C1: Base System SKUs: R2216TLP | D1: Base System SKUs: R2312TLP | F1: Base System SKUs: R2224TLP
A2: ASHRAE (See note 1) | B2: Classifications | C2: A2 | D2: 27C | E2: A2 | F2: 27C | G2: A2
B3: Max Ambient | C3: 35C | D3: 27C | E3: 35C | F3: 27C | G3: 35C | H3: <-- See note 1
A4: PS (See note 5) | B4: Power Supplies | C4: See Note 5 | D4: See Note 5 | F4: See Note 5
A5: EP Processors (See notes 3 and 4) | B5: EP, 135w, 12C (Intel® Xeon® processor E5-2690 V3) | C5: 3,4 | D5: 3,4 | E5: 3,4 | F5: 3,4 | G5: 3,4
B6: EP, 120w, 12C (Intel® Xeon® processor E5-2680 V3, E5-2670 V3) | C6: 3,4 | D6: 3,4 | E6: 3,4 | F6: 3,4 | G6: 3,4
B7: EP, 105w, 10C (Intel® Xeon® processor E5-2660 V3, E5-2650 V3) | C7: 3,4 | D7: 3,4 | E7: 3,4 | F7: 3,4 | G7: 3,4
B8: EP, 90w, 8C (Intel® Xeon® processor E5-2640 V3) | C8: 3,4 | D8: 3,4 | E8: 3,4 | F8: 3,4 | G8: 3,4
B9: EP, 85w,8C,6C (Intel® Xeon® processor E5-2630 V3, E5-2620 V3, E5-2609 V3, E5-2603 V3) | C9: 3,4 | D9: 3,4 | E9: 3,4 | F9: 3,4 | G9: 3,4
B10: EP, 135w, 8C,6C,4C (Intel® Xeon® processor E5-2667 V3, E5-2643 V3, E5-2637 V3) | C10: 3,4 | D10: 3,4 | F10: 3,4
B11: EP, 105w, 4C (Intel® Xeon® processor E5-2623 V3) | C11: 3,4 | D11: 3,4 | E11: 3,4 | F11: 3,4 | G11: 3,4
B12: EP, 65w, 12C (Intel® Xeon® processor E5-2650L V3) | C12: 3,4 | D12: 3,4 | E12: 3,4 | F12: 3,4 | G12: 3,4
B13: EP, 55w, 8C (Intel® Xeon® processor E5-2630L V3) | C13: 3,4 | D13: 3,4 | E13: 3,4 | F13: 3,4 | G13: 3,4
B14: EP, 145w, 14C,18C (Intel® Xeon® processor E5-2697 V3, E5-2699 V3) | C14: 3,4 | D14: 3,4 | F14: 3,4
B15: EP, 135w, 16C (Intel® Xeon® processor E5-2698 V3) | C15: 3,4 | D15: 3,4 | F15: 3,4
B16: EP, 120w, 14C (Intel® Xeon® processor E5-2695 V3, E5-2683 V3) | C16: 3,4 | D16: 3,4 | F16: 3,4
A17: Memory Type (See note 6) | B17: RDIMM-2Rx8,1Rx4 | C17: ● | D17: ● | E17: ● | F17: ● | G17: ●
B18: RDIMM-DRx4 | C18: ● | D18: ● | E18: ● | F18: ● | G18: ●
B19: LRDIMM-QRx4 DDP | C19: ● | D19: ● | E19: ● | F19: ● | G19: ●
A20: Add-in Cards (See note 2) | B20: PCI Cards with 100LFM/55C spec | C20: ●
B21: PCI Cards with 200LFM/55C spec
B22: PCI Cards with 300LFM/55C spec | H22: <-- See note 2
A23: Module (See note 2) | B23: AXX10GBTWLIOM - Dual 10GBASE-T IO Module | C23: ● | D23: ● | E23: ● | F23: ● | G23: ●
B24: AXX10GBNIAIOM - Dual SFP+ port 10GbE IO Module | C24: ● | D24: ● | E24: ● | F24: ● | G24: ●
B25: AXX1FDRIBIOM - Single Port FDR Infiniband IO Module | C25: ● | D25: ● | E25: ● | F25: ● | G25: ●
B26: AXX2FDRIBIOM - Dual Port FDR Infiniband IO Module | C26: ● | D26: ● | E26: ● | F26: ● | G26: ●
B27: AXX4P1GBPWLIOM - Quad Port 1GbE IO Module | C27: ● | D27: ● | E27: ● | F27: ● | G27: ● | H27: <-- See note 2
A28: QSFP Cables (See note 7) | B28: Passive Cable | C28: ● | D28: ● | E28: ● | F28: ● | G28: ●
B29: Active Optical Cable (1.5W) | C29: ● | D29: ● | E29: 7 | F29: ● | G29: 7
B30: Active Optical Cable (2W) | C30: ● | D30: ● | E30: 7 | F30: ● | G30: 7 | H30: <-- See note 7

Sheet Buchanan Pass_Normal
A1: Notes: 1. 27°C is limited to elevations of 900m or less 2. Quad Port IO Modules cannot be installed simultaneously with PCI Cards. 3. Processors - may have significent performance impact. 4. Processors - There may be some performance impact. 5. Memory - There may be some performance impact. FDHS is required 6. For A3/A4 individual PS selection: 1) For dual power supply configuration, power budget must fit within single power supply rated load and be installed in dual configuration 2) For single power supply configuration, power budget must be sized with 30% margin to single power supply rated load. 7. When identifying memory in the table, only Rank and Width are required. Capacity is not required. FDHS required for 8Rx4 memory 8. Processor limited to 90W to support 1.5W AOC cable. Processor limited to 85W and memory limited to DRx4 to support 2W AOC cable. 9. Supported with one HDD per node configuration. 10. NVMe SSD IO throughput throttling is expected as configuration limitation. 11. M.2 SSD drive is used for OS support only with light workload assuming 70% write, 30% read, 100% Random, 100% access, 8kb transfer rate, IO "delay" of 8. No fully stress mode is reuiqred. 12. M.2 drives may see performance impact under heavy work load | D1: Base System SKUs: HNS2204BP | H1: Base System SKUs: HNS2312BP | M1: Base System SKUs: HNS2224BP | R1: Base System SKUs: HNS2204BPLC | V1: Base System SKUs: HNS2312BPLC | Z1: Base System SKUs: HNS2224BPLC
A2: ASHRAE (See note 1) | C2: Classifications | D2: 27C | E2: A2 | F2: A3 | G2: A4 | H2: 27C | I2: A2 | J2: A2 | K2: A3 | L2: A4 | M2: 27C | N2: A2 | O2: A2 | P2: A3 | Q2: A4 | R2: 27C | S2: A2 | T2: A3 | U2: A4 | V2: 27C | W2: A2 | X2: A3 | Y2: A4 | Z2: 27C | AA2: A2 | AB2: A3 | AC2: A4
C3: Max Ambient | D3: 27C | E3: 35C | F3: 40C | G3: 45C | H3: 27C | I3: 35C | J3: 35C | K3: 40C | L3: 45C | M3: 27C | N3: 35C | O3: 35C | P3: 40C | Q3: 45C | R3: 27C | S3: 35C | T3: 40C | U3: 45C | V3: 27C | W3: 35C | X3: 40C | Y3: 45C | Z3: 27C | AA3: 35C | AB3: 40C | AC3: 45C
A4: PS (See note 6) | C4: Power Supplies | D4: See Note 6 | H4: See Note 6 | M4: See Note 6 | R4: See Note 6 | V4: See Note 6 | Z4: See Note 6
A5: Processors (See notes 3 and 4) | B5: 205 W | C5: Intel® Xeon® Platinum 8280_28C
C6: Intel® Xeon® Platinum 8270_26C
C7: Intel® Xeon® Platinum 8268_24C
B8: 200 W | C8: Intel® Xeon® Gold 6254_18C
B9: 165 W | C9: Intel® Xeon® Platinum 8276_28C | D9: ● | E9: ● | F9: 3,4 | G9: 3,4 | H9: ● | J9: 3,4 | K9: 3,4 | M9: ● | O9: 3,4 | P9: 3,4 | R9: ● | S9: ● | T9: ● | U9: ● | V9: ● | W9: ● | X9: ● | Y9: ● | Z9: ● | AA9: ● | AB9: ● | AC9: ●
C10: Intel® Xeon® Platinum 8260_24C | D10: ● | E10: ● | F10: 3,4 | G10: 3,4 | H10: ● | J10: 3,4 | K10: 3,4 | M10: ● | O10: 3,4 | P10: 3,4 | R10: ● | S10: ● | T10: ● | U10: ● | V10: ● | W10: ● | X10: ● | Y10: ● | Z10: ● | AA10: ● | AB10: ● | AC10: ●
C11: Intel® Xeon® Platinum 8260Y_24/20/16C | D11: ● | E11: ● | F11: 3,4 | G11: 3,4 | H11: ● | J11: 3,4 | K11: 3,4 | M11: ● | O11: 3,4 | P11: 3,4 | R11: ● | S11: ● | T11: ● | U11: ● | V11: ● | W11: ● | X11: ● | Y11: ● | Z11: ● | AA11: ● | AB11: ● | AC11: ●
C12: Intel® Xeon® Gold 6246_12C | D12: ● | E12: 3,4 | H12: 3,4 | M12: 3,4 | R12: ● | S12: ● | T12: ● | U12: ● | V12: ● | W12: ● | X12: ● | Y12: ● | Z12: ● | AA12: ● | AB12: ● | AC12: ●
C13: Intel® Xeon® Gold 6212U_24C | D13: ● | E13: ● | F13: 3,4 | G13: 3,4 | H13: ● | J13: 3,4 | K13: 3,4 | M13: ● | O13: 3,4 | P13: 3,4 | R13: ● | S13: ● | T13: ● | U13: ● | V13: ● | W13: ● | X13: ● | Y13: ● | Z13: ● | AA13: ● | AB13: ● | AC13: ●
B14: 150 W | C14: Intel® Xeon® Gold 6252_24C | D14: ● | E14: ● | F14: 3,4 | G14: 3,4 | H14: ● | J14: 3,4 | K14: 3,4 | M14: ● | O14: 3,4 | P14: 3,4 | R14: ● | S14: ● | T14: ● | U14: ● | V14: ● | W14: ● | X14: ● | Y14: ● | Z14: ● | AA14: ● | AB14: ● | AC14: ●
C15: Intel® Xeon® Gold 6252N_24/8/16C | D15: ● | E15: 3,4 | H15: 3,4 | M15: 3,4 | R15: ● | S15: ● | T15: ● | U15: ● | V15: ● | W15: ● | X15: ● | Y15: ● | Z15: ● | AA15: ● | AB15: ● | AC15: ●
C16: Intel® Xeon® Gold 6248_20C | D16: ● | E16: ● | F16: 3,4 | G16: 3,4 | H16: ● | J16: 3,4 | K16: 3,4 | M16: ● | O16: 3,4 | P16: 3,4 | R16: ● | S16: ● | T16: ● | U16: ● | V16: ● | W16: ● | X16: ● | Y16: ● | Z16: ● | AA16: ● | AB16: ● | AC16: ●
C17: Intel® Xeon® Gold 6244_8C | D17: ● | E17: 3,4 | H17: 3,4 | M17: 3,4 | R17: ● | S17: ● | T17: ● | U17: ● | V17: ● | W17: ● | X17: ● | Y17: ● | Z17: ● | AA17: ● | AB17: ● | AC17: ●
C18: Intel® Xeon® Gold 6242_16C | D18: ● | E18: ● | F18: 3,4 | G18: 3,4 | H18: ● | J18: 3,4 | K18: 3,4 | M18: ● | O18: 3,4 | P18: 3,4 | R18: ● | S18: ● | T18: ● | U18: ● | V18: ● | W18: ● | X18: ● | Y18: ● | Z18: ● | AA18: ● | AB18: ● | AC18: ●
C19: Intel® Xeon® Gold 6240_18C | D19: ● | E19: ● | F19: 3,4 | G19: 3,4 | H19: ● | J19: 3,4 | K19: 3,4 | M19: ● | O19: 3,4 | P19: 3,4 | R19: ● | S19: ● | T19: ● | U19: ● | V19: ● | W19: ● | X19: ● | Y19: ● | Z19: ● | AA19: ● | AB19: ● | AC19: ●
C20: Intel® Xeon® Gold 6240Y_18/14/8C | D20: ● | E20: 3,4 | H20: 3,4 | M20: 3,4 | R20: ● | S20: ● | T20: ● | U20: ● | V20: ● | W20: ● | X20: ● | Y20: ● | Z20: ● | AA20: ● | AB20: ● | AC20: ●
C21: Intel® Xeon® Gold 6210U_20C | D21: ● | E21: ● | F21: 3,4 | G21: 3,4 | H21: ● | J21: 3,4 | K21: 3,4 | M21: ● | O21: 3,4 | P21: 3,4 | R21: ● | S21: ● | T21: ● | U21: ● | V21: ● | W21: ● | X21: ● | Y21: ● | Z21: ● | AA21: ● | AB21: ● | AC21: ●
B22: 140 W | C22: Intel® Xeon® Gold 6238_22C | D22: ● | E22: ● | F22: ● | G22: 3,4 | H22: ● | J22: ● | K22: 3,4 | L22: 3,4 | M22: ● | O22: ● | P22: 3,4 | Q22: 3,4 | R22: ● | S22: ● | T22: ● | U22: ● | V22: ● | W22: ● | X22: ● | Y22: ● | Z22: ● | AA22: ● | AB22: ● | AC22: ●
B23: 135 W | C23: Intel® Xeon® Gold 6262V_24C | D23: ● | E23: ● | F23: ● | G23: 3,4 | H23: ● | J23: ● | K23: 3,4 | L23: 3,4 | M23: ● | O23: ● | P23: 3,4 | Q23: 3,4 | R23: ● | S23: ● | T23: ● | U23: ● | V23: ● | W23: ● | X23: ● | Y23: ● | Z23: ● | AA23: ● | AB23: ● | AC23: ●
B24: 130 W | C24: Intel® Xeon® Gold 6234_8C | D24: ● | E24: ● | F24: 3,4 | G24: 3,4 | H24: ● | J24: 3,4 | K24: 3,4 | M24: ● | O24: 3,4 | P24: 3,4 | R24: ● | S24: ● | T24: ● | U24: ● | V24: ● | W24: ● | X24: ● | Y24: ● | Z24: ● | AA24: ● | AB24: ● | AC24: ●
B25: 125 W | C25: Intel® Xeon® Platinum 8253_16C | D25: ● | E25: ● | F25: ● | G25: 3,4 | H25: ● | J25: ● | K25: 3,4 | L25: 3,4 | M25: ● | O25: ● | P25: 3,4 | Q25: 3,4 | R25: ● | S25: ● | T25: ● | U25: ● | V25: ● | W25: ● | X25: ● | Y25: ● | Z25: ● | AA25: ● | AB25: ● | AC25: ●
C26: Intel® Xeon® Gold 6238T_22C | D26: ● | E26: ● | F26: 3,4 | G26: 3,4 | H26: ● | J26: 3,4 | K26: 3,4 | M26: ● | O26: 3,4 | P26: 3,4 | R26: ● | S26: ● | T26: ● | U26: ● | V26: ● | W26: ● | X26: ● | Y26: ● | Z26: ● | AA26: ● | AB26: ● | AC26: ●
C27: Intel® Xeon® Gold 6230_20C | D27: ● | E27: ● | F27: ● | G27: 3,4 | H27: ● | J27: ● | K27: 3,4 | L27: 3,4 | M27: ● | O27: ● | P27: 3,4 | Q27: 3,4 | R27: ● | S27: ● | T27: ● | U27: ● | V27: ● | W27: ● | X27: ● | Y27: ● | Z27: ● | AA27: ● | AB27: ● | AC27: ●
C28: Intel® Xeon® Gold 6230T_20C | D28: ● | E28: ● | F28: 3,4 | G28: 3,4 | H28: ● | J28: 3,4 | K28: 3,4 | M28: ● | O28: 3,4 | P28: 3,4 | R28: ● | S28: ● | T28: ● | U28: ● | V28: ● | W28: ● | X28: ● | Y28: ● | Z28: ● | AA28: ● | AB28: ● | AC28: ●
C29: Intel® Xeon® Gold 6230N_20/6/14C | D29: ● | E29: ● | F29: 3,4 | G29: 3,4 | H29: ● | J29: 3,4 | K29: 3,4 | M29: ● | O29: 3,4 | P29: 3,4 | R29: ● | S29: ● | T29: ● | U29: ● | V29: ● | W29: ● | X29: ● | Y29: ● | Z29: ● | AA29: ● | AB29: ● | AC29: ●
C30: Intel® Xeon® Gold 6226_12C | D30: ● | E30: ● | F30: ● | G30: 3,4 | H30: ● | J30: ● | K30: 3,4 | L30: 3,4 | M30: ● | O30: ● | P30: 3,4 | Q30: 3,4 | R30: ● | S30: ● | T30: ● | U30: ● | V30: ● | W30: ● | X30: ● | Y30: ● | Z30: ● | AA30: ● | AB30: ● | AC30: ●
C31: Intel® Xeon® Gold 6209U_20C | D31: ● | E31: ● | F31: ● | G31: 3,4 | H31: ● | J31: ● | K31: 3,4 | L31: 3,4 | M31: ● | O31: ● | P31: 3,4 | Q31: 3,4 | R31: ● | S31: ● | T31: ● | U31: ● | V31: ● | W31: ● | X31: ● | Y31: ● | Z31: ● | AA31: ● | AB31: ● | AC31: ●
C32: Intel® Xeon® Gold 5220_18C | D32: ● | E32: ● | F32: ● | G32: 3,4 | H32: ● | J32: ● | K32: 3,4 | L32: 3,4 | M32: ● | O32: ● | P32: 3,4 | Q32: 3,4 | R32: ● | S32: ● | T32: ● | U32: ● | V32: ● | W32: ● | X32: ● | Y32: ● | Z32: ● | AA32: ● | AB32: ● | AC32: ●
C33: Intel® Xeon® Gold 5220S_18C | D33: ● | E33: ● | F33: ● | G33: 3,4 | H33: ● | J33: ● | K33: 3,4 | L33: 3,4 | M33: ● | O33: ● | P33: 3,4 | Q33: 3,4 | R33: ● | S33: ● | T33: ● | U33: ● | V33: ● | W33: ● | X33: ● | Y33: ● | Z33: ● | AA33: ● | AB33: ● | AC33: ●
C34: Intel® Xeon® Gold 5218_16C | D34: ● | E34: ● | F34: ● | G34: 3,4 | H34: ● | J34: ● | K34: 3,4 | L34: 3,4 | M34: ● | O34: ● | P34: 3,4 | Q34: 3,4 | R34: ● | S34: ● | T34: ● | U34: ● | V34: ● | W34: ● | X34: ● | Y34: ● | Z34: ● | AA34: ● | AB34: ● | AC34: ●
C35: Intel® Xeon® Gold 5218B_16C | D35: ● | E35: ● | F35: ● | G35: 3,4 | H35: ● | J35: ● | K35: 3,4 | L35: 3,4 | M35: ● | O35: ● | P35: 3,4 | Q35: 3,4 | R35: ● | S35: ● | T35: ● | U35: ● | V35: ● | W35: ● | X35: ● | Y35: ● | Z35: ● | AA35: ● | AB35: ● | AC35: ●
B36: 115 W | C36: Intel® Xeon® Gold 6222V_20C | D36: ● | E36: ● | F36: ● | G36: 3,4 | H36: ● | J36: ● | K36: 3,4 | L36: 3,4 | M36: ● | O36: ● | P36: 3,4 | Q36: 3,4 | R36: ● | S36: ● | T36: ● | U36: ● | V36: ● | W36: ● | X36: ● | Y36: ● | Z36: ● | AA36: ● | AB36: ● | AC36: ●
C37: Intel® Xeon® Gold 5217_8C | D37: ● | E37: ● | F37: 3,4 | G37: 3,4 | H37: ● | J37: 3,4 | K37: 3,4 | M37: ● | O37: 3,4 | P37: 3,4 | R37: ● | S37: ● | T37: ● | U37: ● | V37: ● | W37: ● | X37: ● | Y37: ● | Z37: ● | AA37: ● | AB37: ● | AC37: ●
B38: 105 W | C38: Intel® Xeon® Platinum 8256_4C | D38: ● | E38: ● | F38: 3,4 | G38: 3,4 | H38: ● | J38: 3,4 | K38: 3,4 | M38: ● | O38: 3,4 | P38: 3,4 | R38: ● | S38: ● | T38: ● | U38: ● | V38: ● | W38: ● | X38: ● | Y38: ● | Z38: ● | AA38: ● | AB38: ● | AC38: ●
C39: Intel® Xeon® Gold 5222_4C | D39: ● | E39: ● | F39: 3,4 | G39: 3,4 | H39: ● | J39: 3,4 | K39: 3,4 | M39: ● | O39: 3,4 | P39: 3,4 | R39: ● | S39: ● | T39: ● | U39: ● | V39: ● | W39: ● | X39: ● | Y39: ● | Z39: ● | AA39: ● | AB39: ● | AC39: ●
C40: Intel® Xeon® Gold 5220T_18C | D40: ● | E40: ● | F40: ● | G40: 3,4 | H40: ● | J40: ● | K40: 3,4 | L40: 3,4 | M40: ● | O40: ● | P40: 3,4 | Q40: 3,4 | R40: ● | S40: ● | T40: ● | U40: ● | V40: ● | W40: ● | X40: ● | Y40: ● | Z40: ● | AA40: ● | AB40: ● | AC40: ●
C41: Intel® Xeon® Gold 5218N_16/4/12C | D41: ● | E41: ● | F41: ● | G41: 3,4 | H41: ● | J41: ● | K41: 3,4 | L41: 3,4 | M41: ● | O41: ● | P41: 3,4 | Q41: 3,4 | R41: ● | S41: ● | T41: ● | U41: ● | V41: ● | W41: ● | X41: ● | Y41: ● | Z41: ● | AA41: ● | AB41: ● | AC41: ●
C42: Intel® Xeon® Gold 5218T_16C | D42: ● | E42: ● | F42: ● | G42: 3,4 | H42: ● | J42: ● | K42: 3,4 | L42: 3,4 | M42: ● | O42: ● | P42: 3,4 | Q42: 3,4 | R42: ● | S42: ● | T42: ● | U42: ● | V42: ● | W42: ● | X42: ● | Y42: ● | Z42: ● | AA42: ● | AB42: ● | AC42: ●
B43: 100 W | C43: Intel® Xeon® Silver 4216_16C | D43: ● | E43: ● | F43: ● | G43: 3,4 | H43: ● | J43: ● | K43: 3,4 | L43: 3,4 | M43: ● | O43: ● | P43: 3,4 | Q43: 3,4 | R43: ● | S43: ● | T43: ● | U43: ● | V43: ● | W43: ● | X43: ● | Y43: ● | Z43: ● | AA43: ● | AB43: ● | AC43: ●
B44: 85 W | C44: Intel® Xeon® Gold 5215_10C | D44: ● | E44: ● | F44: ● | G44: 3,4 | H44: ● | I44: ● | K44: 3,4 | L44: 3,4 | M44: ● | N44: ● | P44: 3,4 | Q44: 3,4 | R44: ● | S44: ● | T44: ● | U44: ● | V44: ● | W44: ● | X44: ● | Y44: ● | Z44: ● | AA44: ● | AB44: ● | AC44: ●
C45: Intel® Xeon® Silver 4215_8C | D45: ● | E45: ● | F45: ● | G45: 3,4 | H45: ● | I45: ● | K45: 3,4 | L45: 3,4 | M45: ● | N45: ● | P45: 3,4 | Q45: 3,4 | R45: ● | S45: ● | T45: ● | U45: ● | V45: ● | W45: ● | X45: ● | Y45: ● | Z45: ● | AA45: ● | AB45: ● | AC45: ●
C46: Intel® Xeon® Silver 4214_12C | D46: ● | E46: ● | F46: ● | G46: 3,4 | H46: ● | I46: ● | K46: 3,4 | L46: 3,4 | M46: ● | N46: ● | P46: 3,4 | Q46: 3,4 | R46: ● | S46: ● | T46: ● | U46: ● | V46: ● | W46: ● | X46: ● | Y46: ● | Z46: ● | AA46: ● | AB46: ● | AC46: ●
C47: Intel® Xeon® Silver 4214Y_12/10/8C | D47: ● | E47: ● | F47: ● | G47: 3,4 | H47: ● | I47: ● | K47: 3,4 | L47: 3,4 | M47: ● | N47: ● | P47: 3,4 | Q47: 3,4 | R47: ● | S47: ● | T47: ● | U47: ● | V47: ● | W47: ● | X47: ● | Y47: ● | Z47: ● | AA47: ● | AB47: ● | AC47: ●
C48: Intel® Xeon® Silver 4210_10C | D48: ● | E48: ● | F48: ● | G48: 3,4 | H48: ● | I48: ● | K48: 3,4 | L48: 3,4 | M48: ● | N48: ● | P48: 3,4 | Q48: 3,4 | R48: ● | S48: ● | T48: ● | U48: ● | V48: ● | W48: ● | X48: ● | Y48: ● | Z48: ● | AA48: ● | AB48: ● | AC48: ●
C49: Intel® Xeon® Silver 4208_8C | D49: ● | E49: ● | F49: ● | G49: 3,4 | H49: ● | I49: ● | K49: 3,4 | L49: 3,4 | M49: ● | N49: ● | P49: 3,4 | Q49: 3,4 | R49: ● | S49: ● | T49: ● | U49: ● | V49: ● | W49: ● | X49: ● | Y49: ● | Z49: ● | AA49: ● | AB49: ● | AC49: ●
C50: Intel® Xeon® Bronze 3204_6C | D50: ● | E50: ● | F50: ● | G50: 3,4 | H50: ● | I50: ● | K50: 3,4 | L50: 3,4 | M50: ● | N50: ● | P50: 3,4 | Q50: 3,4 | R50: ● | S50: ● | T50: ● | U50: ● | V50: ● | W50: ● | X50: ● | Y50: ● | Z50: ● | AA50: ● | AB50: ● | AC50: ●
B51: 70W | C51: Intel® Xeon® Gold 4209T_8C | D51: ● | E51: ● | F51: ● | G51: 3,4 | H51: ● | I51: ● | K51: 3,4 | L51: 3,4 | M51: ● | N51: ● | P51: 3,4 | Q51: 3,4 | R51: ● | S51: ● | T51: ● | U51: ● | V51: ● | W51: ● | X51: ● | Y51: ● | Z51: ● | AA51: ● | AB51: ● | AC51: ●
A52: Memory Type (See note 7) | C52: RDIMM-2Rx8,1Rx4 | D52: ● | E52: ● | F52: ● | G52: ● | H52: ● | I52: ● | J52: ● | K52: ● | L52: ● | M52: ● | N52: ● | O52: ● | P52: ● | Q52: ● | R52: ● | S52: ● | T52: ● | U52: ● | V52: ● | W52: ● | X52: ● | Y52: ● | Z52: ● | AA52: ● | AB52: ● | AC52: ●
C53: RDIMM-DRx4 | D53: ● | E53: ● | F53: ● | G53: ● | H53: ● | I53: ● | J53: ● | K53: ● | L53: ● | M53: ● | N53: ● | O53: ● | P53: ● | Q53: ● | R53: ● | S53: ● | T53: ● | U53: ● | V53: ● | W53: ● | X53: ● | Y53: ● | Z53: ● | AA53: ● | AB53: ● | AC53: ●
C54: LRDIMM-QRx4 DDP | D54: ● | E54: ● | F54: ● | G54: ● | H54: ● | I54: ● | J54: ● | K54: ● | L54: ● | M54: ● | N54: ● | O54: ● | P54: ● | Q54: ● | R54: ● | S54: ● | T54: ● | U54: ● | V54: ● | W54: ● | X54: ● | Y54: ● | Z54: ● | AA54: ● | AB54: ● | AC54: ●
C55: LRDIMM-8Rx4 DDP | D55: ● | E55: ● | F55: 5 | G55: 5 | H55: ● | I55: ● | J55: 5 | K55: 5 | L55: 5 | M55: ● | N55: ● | O55: 5 | P55: 5 | Q55: 5 | R55: ● | S55: ● | T55: 5 | U55: 5 | V55: ● | W55: ● | X55: 5 | Y55: 5 | Z55: ● | AA55: ● | AB55: 5 | AC55: 5
A56: AEP (See note 7) | C56: SDP 128G 15W | D56: ● | E56: ● | F56: 5 | G56: 5 | H56: ● | I56: 5 | J56: 5 | M56: ● | N56: 5 | O56: 5 | R56: ● | S56: ● | T56: 5 | U56: 5 | V56: ● | W56: 5 | Z56: ● | AA56: 5
C57: DDP 256G 18W | D57: ● | E57: 5 | H57: 5 | M57: 5 | R57: ● | S57: 5 | V57: 5 | W57: 5 | Z57: 5 | AA57: 5
C58: QDP 512G 18W | D58: ● | E58: 5 | H58: 5 | M58: 5 | R58: ● | S58: 5 | V58: 5 | W58: 5 | Z58: 5 | AA58: 5
A59: Add-in Cards | C59: PCI Cards with 100LFM/55C spec | D59: ● | E59: ● | F59: ● | G59: ● | H59: ● | I59: ● | J59: ● | K59: ● | L59: ● | M59: ● | N59: ● | O59: ● | P59: ● | Q59: ● | R59: ● | S59: ● | T59: ● | U59: ● | V59: ● | W59: ● | X59: ● | Y59: ● | Z59: ● | AA59: ● | AB59: ● | AC59: ●
C60: PCI Cards With 200LFM/55C spec | D60: ● | E60: ● | F60: ● | G60: ● | H60: 9 | I60: ● | J60: 9 | M60: 9 | N60: ● | O60: 9 | R60: ● | S60: ● | T60: ● | U60: ● | V60: ● | W60: ● | X60: ● | Y60: ● | Z60: ● | AA60: ● | AB60: ● | AC60: ●
C61: PCI Cards With 300LFM/55C spec | D61: ● | E61: ● | F61: ● | G61: ● | I61: 9 | N61: 9 | R61: ● | S61: ● | T61: ● | U61: ● | V61: ● | W61: ● | X61: ● | Y61: ● | Z61: ● | AA61: ● | AB61: ● | AC61: ●
A62: Battery Backup (See note 9) | C62: Supercap (rated to 55C) | D62: ● | E62: ● | F62: ● | G62: ● | H62: ● | I62: ● | J62: ● | K62: ● | L62: ● | M62: ● | N62: ● | O62: ● | P62: ● | Q62: ● | R62: ● | S62: ● | T62: ● | U62: ● | V62: ● | W62: ● | X62: ● | Y62: ● | Z62: ● | AA62: ● | AB62: ● | AC62: ●
A63: 2.5" U.2 NVMe SSD | B63: P3700/P3500 | C63: 400GB/800GB | M63: ● | N63: ● | O63: ● | P63: ● | Q63: ●
C64: 1.6TB/2TB | M64: ● | N64: ● | O64: ● | P64: ● | Q64: ●
B65: P4500/P4600 | C65: 1TB/2TB/4TB | M65: ● | N65: ● | O65: ● | P65: ● | Q65: ●
C66: 1.6TB/2.0TB/3.2TB | M66: ● | N66: ● | O66: ● | P66: ● | Q66: ●
A67: PCIe AIC NVMe SSD | B67: P3700/P3500 | C67: 200GB/400GB | D67: ● | E67: ● | F67: ● | G67: ● | H67: ● | I67: ● | J67: ● | M67: ● | N67: ● | O67: ● | R67: ● | S67: ● | T67: ● | U67: ● | V67: ● | W67: ● | X67: ● | Y67: ● | Z67: ● | AA67: ● | AB67: ● | AC67: ●
C68: 800GB/1.6TB/2TB | D68: ● | E68: ● | F68: ● | H68: ● | M68: ● | R68: ● | S68: ● | T68: ● | U68: ● | V68: ● | W68: ● | X68: ● | Y68: ● | Z68: ● | AA68: ● | AB68: ● | AC68: ●
B69: P4500/P4600 | C69: 2TB/ | D69: ● | E69: ● | F69: ● | G69: ● | H69: ● | I69: ● | J69: ● | M69: ● | N69: ● | O69: ● | R69: ● | S69: ● | T69: ● | U69: ● | V69: ● | W69: ● | X69: ● | Y69: ● | Z69: ● | AA69: ● | AB69: ● | AC69: ●
C70: 2TB/4TB | D70: ● | E70: ● | F70: ● | G70: ● | H70: ● | I70: ● | J70: ● | M70: ● | N70: ● | O70: ● | R70: ● | S70: ● | T70: ● | U70: ● | V70: ● | W70: ● | X70: ● | Y70: ● | Z70: ● | AA70: ● | AB70: ● | AC70: ●
A71: QSFP Cables (See note 8) | C71: Passive Cable | D71: ● | E71: ● | F71: ● | G71: ● | H71: ● | I71: ● | J71: ● | K71: ● | L71: ● | M71: ● | N71: ● | O71: ● | P71: ● | Q71: ● | R71: ● | S71: ● | T71: ● | U71: ● | V71: ● | W71: ● | X71: ● | Y71: ● | Z71: ● | AA71: ● | AB71: ● | AC71: ●
C72: Active Optical Cable (1.5W) | D72: ● | E72: ● | H72: ● | I72: ● | J72: 8 | M72: ● | N72: ● | O72: 8 | R72: ● | S72: ● | V72: ● | W72: ● | Z72: ● | AA72: ●
C73: Active Optical Cable (2W) | E73: ● | I73: ● | J73: 8 | N73: ● | O73: 8 | R73: ● | S73: ● | V73: ● | W73: ● | Z73: ● | AA73: ●
A74: M.2 SSD(See note 11) | C74: PCIe M.2 | D74: ● | E74: 12 | F74: 12 | G74: 12 | H74: ● | I74: 12 | J74: 12 | K74: 12 | L74: 12 | M74: ● | N74: 12 | O74: 12 | P74: 12 | Q74: 12 | R74: ● | S74: ● | T74: 12 | U74: 12 | V74: ● | W74: ● | X74: 12 | Y74: 12 | Z74: ● | AA74: ● | AB74: 12 | AC74: 12
C75: SATA M.2 | D75: ● | E75: ● | F75: 12 | G75: 12 | H75: ● | I75: 12 | J75: 12 | K75: 12 | L75: 12 | M75: ● | N75: 12 | O75: 12 | P75: 12 | Q75: 12 | R75: ● | S75: ● | T75: 12 | U75: 12 | V75: ● | W75: ● | X75: 12 | Y75: 12 | Z75: ● | AA75: ● | AB75: 12 | AC75: 12

Sheet Buchanan Pass_Fan Fail
A1: Notes: 1. 27°C is limited to elevations of 900m or less 2. Quad Port IO Modules cannot be installed simultaneously with PCI Cards. 3. Processors - may have significent performance impact. 4. Processors - There may be some performance impact. 5. Memory - There may be some performance impact. FDHS is required 6. For A3/A4 individual PS selection: 1) For dual power supply configuration, power budget must fit within single power supply rated load and be installed in dual configuration 2) For single power supply configuration, power budget must be sized with 30% margin to single power supply rated load. 7. When identifying memory in the table, only Rank and Width are required. Capacity is not required. FDHS required for 8Rx4 memory 8. Processor limited to 90W to support 1.5W AOC cable. Processor limited to 85W and memory limited to DRx4 to support 2W AOC cable. 9. Supported with one HDD per node configuration. 10. NVMe SSD IO throughput throttling is expected as configuration limitation. 11. M.2 SSD drive is used for OS support only with light workload assuming 70% write, 30% read, 100% Random, 100% access, 8kb transfer rate, IO "delay" of 8. No fully stress mode is reuiqred. 12. M.2 drives may see performance impact under heavy work load | D1: Base System SKUs: H2204BNP | H1: Base System SKUs: H2312BNP | L1: Base System SKUs: H2224BNP | P1: Base System SKUs: HNS2204BPLC | T1: Base System SKUs: HNS2312BPLC | X1: Base System SKUs: HNS2224BPLC
A2: ASHRAE (See note 1) | C2: Classifications | D2: 27C | E2: A2 | F2: A3 | G2: A4 | H2: 27C | I2: A2 | J2: A3 | K2: A4 | L2: 27C | M2: A2 | N2: A3 | O2: A4 | P2: 27C | Q2: A2 | R2: A3 | S2: A4 | T2: 27C | U2: A2 | V2: A3 | W2: A4 | X2: 27C | Y2: A2 | Z2: A3 | AA2: A4
C3: Max Ambient | D3: 27C | E3: 35C | F3: 40C | G3: 45C | H3: 27C | I3: 35C | J3: 40C | K3: 45C | L3: 27C | M3: 35C | N3: 40C | O3: 45C | P3: 27C | Q3: 35C | R3: 40C | S3: 45C | T3: 27C | U3: 35C | V3: 40C | W3: 45C | X3: 27C | Y3: 35C | Z3: 40C | AA3: 45C
A4: PS (See note 5) | C4: Power Supplies | D4: See Note 6 | H4: See Note 6 | L4: See Note 6 | P4: See Note 6 | T4: See Note 6 | X4: See Note 6
A5: Processors (See notes 3 and 4) | B5: 205 W | C5: Intel® Xeon® Platinum 8280_28C
C6: Intel® Xeon® Platinum 8270_26C
C7: Intel® Xeon® Platinum 8268_24C
B8: 200 W | C8: Intel® Xeon® Gold 6254_18C
B9: 165 W | C9: Intel® Xeon® Platinum 8276_28C | D9: ● | E9: 3,4 | H9: 3,4 | L9: 3,4 | P9: ● | Q9: ● | T9: ● | U9: ● | X9: ● | Y9: ●
C10: Intel® Xeon® Platinum 8260_24C | D10: ● | E10: 3,4 | H10: 3,4 | L10: 3,4 | P10: ● | Q10: ● | T10: ● | U10: ● | X10: ● | Y10: ●
C11: Intel® Xeon® Platinum 8260Y_24/20/16C | D11: ● | E11: 3,4 | H11: 3,4 | L11: 3,4 | P11: ● | Q11: ● | T11: ● | U11: ● | X11: ● | Y11: ●
C12: Intel® Xeon® Gold 6246_12C | D12: 3,4 | P12: ● | Q12: ● | T12: ● | U12: ● | X12: ● | Y12: ●
C13: Intel® Xeon® Gold 6212U_24C | D13: ● | E13: 3,4 | H13: 3,4 | L13: 3,4 | P13: ● | Q13: ● | T13: ● | U13: ● | X13: ● | Y13: ●
B14: 150 W | C14: Intel® Xeon® Gold 6252_24C | D14: ● | E14: 3,4 | H14: 3,4 | L14: 3,4 | P14: ● | Q14: ● | T14: ● | U14: ● | X14: ● | Y14: ●
C15: Intel® Xeon® Gold 6252N_24/8/16C | D15: 3,4 | P15: ● | Q15: ● | T15: ● | U15: ● | X15: ● | Y15: ●
C16: Intel® Xeon® Gold 6248_20C | D16: ● | E16: 3,4 | H16: 3,4 | L16: 3,4 | P16: ● | Q16: ● | T16: ● | U16: ● | X16: ● | Y16: ●
C17: Intel® Xeon® Gold 6244_8C | D17: 3,4 | P17: ● | Q17: ● | T17: ● | U17: ● | X17: ● | Y17: ●
C18: Intel® Xeon® Gold 6242_16C | D18: ● | E18: 3,4 | H18: 3,4 | L18: 3,4 | P18: ● | Q18: ● | T18: ● | U18: ● | X18: ● | Y18: ●
C19: Intel® Xeon® Gold 6240_18C | D19: ● | E19: 3,4 | H19: 3,4 | L19: 3,4 | P19: ● | Q19: ● | T19: ● | U19: ● | X19: ● | Y19: ●
C20: Intel® Xeon® Gold 6240Y_18/14/8C | D20: 3,4 | P20: ● | Q20: ● | T20: ● | U20: ● | X20: ● | Y20: ●
C21: Intel® Xeon® Gold 6210U_20C | D21: ● | E21: 3,4 | H21: 3,4 | L21: 3,4 | P21: ● | Q21: ● | T21: ● | U21: ● | X21: ● | Y21: ●
B22: 140 W | C22: Intel® Xeon® Gold 6238_22C | D22: ● | E22: 3,4 | H22: 3,4 | I22: 3,4 | L22: 3,4 | M22: 3,4 | P22: ● | Q22: ● | T22: ● | U22: ● | X22: ● | Y22: ●
B23: 135 W | C23: Intel® Xeon® Gold 6262V_24C | D23: ● | E23: 3,4 | H23: 3,4 | I23: 3,4 | L23: 3,4 | M23: 3,4 | P23: ● | Q23: ● | T23: ● | U23: ● | X23: ● | Y23: ●
B24: 130 W | C24: Intel® Xeon® Gold 6234_8C | D24: ● | E24: 3,4 | H24: 3,4 | L24: 3,4 | P24: ● | Q24: ● | T24: ● | U24: ● | X24: ● | Y24: ●
B25: 125 W | C25: Intel® Xeon® Platinum 8253_16C | D25: ● | E25: 3,4 | H25: 3,4 | I25: 3,4 | L25: 3,4 | M25: 3,4 | P25: ● | Q25: ● | T25: ● | U25: ● | X25: ● | Y25: ●
C26: Intel® Xeon® Gold 6238T_22C | D26: ● | E26: 3,4 | H26: 3,4 | L26: 3,4 | P26: ● | Q26: ● | T26: ● | U26: ● | X26: ● | Y26: ●
C27: Intel® Xeon® Gold 6230_20C | D27: ● | E27: 3,4 | H27: 3,4 | I27: 3,4 | L27: 3,4 | M27: 3,4 | P27: ● | Q27: ● | T27: ● | U27: ● | X27: ● | Y27: ●
C28: Intel® Xeon® Gold 6230T_20C | D28: ● | E28: 3,4 | H28: 3,4 | L28: 3,4 | P28: ● | Q28: ● | T28: ● | U28: ● | X28: ● | Y28: ●
C29: Intel® Xeon® Gold 6230N_20/6/14C | D29: ● | E29: 3,4 | H29: 3,4 | L29: 3,4 | P29: ● | Q29: ● | T29: ● | U29: ● | X29: ● | Y29: ●
C30: Intel® Xeon® Gold 6226_12C | D30: ● | E30: 3,4 | H30: 3,4 | I30: 3,4 | L30: 3,4 | M30: 3,4 | P30: ● | Q30: ● | T30: ● | U30: ● | X30: ● | Y30: ●
C31: Intel® Xeon® Gold 6209U_20C | D31: ● | E31: 3,4 | H31: 3,4 | I31: 3,4 | L31: 3,4 | M31: 3,4 | P31: ● | Q31: ● | T31: ● | U31: ● | X31: ● | Y31: ●
C32: Intel® Xeon® Gold 5220_18C | D32: ● | E32: 3,4 | H32: 3,4 | I32: 3,4 | L32: 3,4 | M32: 3,4 | P32: ● | Q32: ● | T32: ● | U32: ● | X32: ● | Y32: ●
C33: Intel® Xeon® Gold 5220S_18C | D33: ● | E33: 3,4 | H33: 3,4 | I33: 3,4 | L33: 3,4 | M33: 3,4 | P33: ● | Q33: ● | T33: ● | U33: ● | X33: ● | Y33: ●
C34: Intel® Xeon® Gold 5218_16C | D34: ● | E34: 3,4 | H34: 3,4 | I34: 3,4 | L34: 3,4 | M34: 3,4 | P34: ● | Q34: ● | T34: ● | U34: ● | X34: ● | Y34: ●
C35: Intel® Xeon® Gold 5218B_16C | D35: ● | E35: 3,4 | H35: 3,4 | I35: 3,4 | L35: 3,4 | M35: 3,4 | P35: ● | Q35: ● | T35: ● | U35: ● | X35: ● | Y35: ●
B36: 115 W | C36: Intel® Xeon® Gold 6222V_20C | D36: ● | E36: 3,4 | H36: 3,4 | I36: 3,4 | L36: 3,4 | M36: 3,4 | P36: ● | Q36: ● | T36: ● | U36: ● | X36: ● | Y36: ●
C37: Intel® Xeon® Gold 5217_8C | D37: ● | E37: 3,4 | H37: 3,4 | L37: 3,4 | P37: ● | Q37: ● | T37: ● | U37: ● | X37: ● | Y37: ●
B38: 105 W | C38: Intel® Xeon® Platinum 8256_4C | D38: ● | E38: 3,4 | H38: 3,4 | L38: 3,4 | P38: ● | Q38: ● | T38: ● | U38: ● | X38: ● | Y38: ●
C39: Intel® Xeon® Gold 5222_4C | D39: ● | E39: 3,4 | H39: 3,4 | L39: 3,4 | P39: ● | Q39: ● | T39: ● | U39: ● | X39: ● | Y39: ●
C40: Intel® Xeon® Gold 5220T_18C | D40: ● | E40: 3,4 | H40: 3,4 | I40: 3,4 | L40: 3,4 | M40: 3,4 | P40: ● | Q40: ● | T40: ● | U40: ● | X40: ● | Y40: ●
C41: Intel® Xeon® Gold 5218N_16/4/12C | D41: ● | E41: 3,4 | H41: 3,4 | I41: 3,4 | L41: 3,4 | M41: 3,4 | P41: ● | Q41: ● | T41: ● | U41: ● | X41: ● | Y41: ●
C42: Intel® Xeon® Gold 5218T_16C | D42: ● | E42: 3,4 | H42: 3,4 | I42: 3,4 | L42: 3,4 | M42: 3,4 | P42: ● | Q42: ● | T42: ● | U42: ● | X42: ● | Y42: ●
B43: 100 W | C43: Intel® Xeon® Silver 4216_16C | D43: ● | E43: 3,4 | H43: 3,4 | I43: 3,4 | L43: 3,4 | M43: 3,4 | P43: ● | Q43: ● | T43: ● | U43: ● | X43: ● | Y43: ●
B44: 85 W | C44: Intel® Xeon® Gold 5215_10C | D44: ● | E44: 3,4 | H44: 3,4 | I44: 3,4 | L44: 3,4 | M44: 3,4 | P44: ● | Q44: ● | T44: ● | U44: ● | X44: ● | Y44: ●
C45: Intel® Xeon® Silver 4215_8C | D45: ● | E45: 3,4 | H45: 3,4 | I45: 3,4 | L45: 3,4 | M45: 3,4 | P45: ● | Q45: ● | T45: ● | U45: ● | X45: ● | Y45: ●
C46: Intel® Xeon® Silver 4214_12C | D46: ● | E46: 3,4 | H46: 3,4 | I46: 3,4 | L46: 3,4 | M46: 3,4 | P46: ● | Q46: ● | T46: ● | U46: ● | X46: ● | Y46: ●
C47: Intel® Xeon® Silver 4214Y_12/10/8C | D47: ● | E47: 3,4 | H47: 3,4 | I47: 3,4 | L47: 3,4 | M47: 3,4 | P47: ● | Q47: ● | T47: ● | U47: ● | X47: ● | Y47: ●
C48: Intel® Xeon® Silver 4210_10C | D48: ● | E48: 3,4 | H48: 3,4 | I48: 3,4 | L48: 3,4 | M48: 3,4 | P48: ● | Q48: ● | T48: ● | U48: ● | X48: ● | Y48: ●
C49: Intel® Xeon® Silver 4208_8C | D49: ● | E49: 3,4 | H49: 3,4 | I49: 3,4 | L49: 3,4 | M49: 3,4 | P49: ● | Q49: ● | T49: ● | U49: ● | X49: ● | Y49: ●
C50: Intel® Xeon® Bronze 3204_6C | D50: ● | E50: 3,4 | H50: 3,4 | I50: 3,4 | L50: 3,4 | M50: 3,4 | P50: ● | Q50: ● | T50: ● | U50: ● | X50: ● | Y50: ●
B51: 70W | C51: Intel® Xeon® Gold 4209T_8C | D51: ● | E51: 3,4 | H51: 3,4 | I51: 3,4 | L51: 3,4 | M51: 3,4 | P51: ● | Q51: ● | T51: ● | U51: ● | X51: ● | Y51: ●
A52: Memory Type (See note 7) | C52: RDIMM-2Rx8,1Rx4 | D52: ● | E52: ● | H52: ● | I52: ● | L52: ● | M52: ● | P52: ● | Q52: ● | T52: ● | U52: ● | X52: ● | Y52: ●
C53: RDIMM-DRx4 | D53: ● | E53: ● | H53: ● | I53: ● | L53: ● | M53: ● | P53: ● | Q53: ● | T53: ● | U53: ● | X53: ● | Y53: ●
C54: LRDIMM-QRx4 DDP | D54: ● | E54: ● | H54: ● | I54: ● | L54: ● | M54: ● | P54: ● | Q54: ● | T54: ● | U54: ● | X54: ● | Y54: ●
C55: LRDIMM-8Rx4 DDP | D55: ● | E55: ● | H55: ● | I55: 5 | L55: ● | M55: 5 | P55: ● | Q55: ● | T55: ● | U55: 5 | X55: ● | Y55: 5
A56: AEP (See note 7) | C56: SDP 128G 15W | D56: ● | E56: 5 | H56: ● | I56: 5 | L56: ● | M56: 5 | P56: ● | Q56: 5 | T56: ● | U56: 5 | X56: ● | Y56: 5
C57: DDP 256G 18W | D57: ● | E57: 5 | H57: 5 | L57: 5 | P57: ● | Q57: 5 | T57: 5 | X57: 5
C58: QDP 512G 18W | D58: ● | E58: 5 | H58: 5 | L58: 5 | P58: ● | Q58: 5 | T58: 5 | X58: 5
A59: Add-in Cards | C59: PCI Cards with 100LFM/55C spec | D59: ● | E59: ● | H59: ● | I59: ● | L59: ● | M59: ● | P59: ● | Q59: ● | T59: ● | U59: ● | X59: ● | Y59: ●
C60: PCI Cards With 200LFM/55C spec | D60: ● | E60: 2 | H60: 2 | I60: 2 | L60: 2 | M60: 2 | P60: ● | Q60: ● | T60: ● | U60: ● | X60: ● | Y60: ●
C61: PCI Cards With 300LFM/55C spec | P61: ● | Q61: ● | T61: ● | U61: ● | X61: ● | Y61: ●
A62: Battery Backup (See note 9) | C62: Supercap (rated to 55C) | D62: ● | E62: ● | H62: ● | I62: ● | L62: ● | M62: ● | P62: ● | Q62: ● | T62: ● | U62: ● | X62: ● | Y62: ●
A63: 2.5" U.2 NVMe SSD | B63: P3700/P3500 | C63: 400GB/800GB | L63: ● | M63: ●
C64: 1.6TB/2TB | L64: ● | M64: ●
B65: P4500/P4600 | C65: 1TB/2TB/4TB | L65: ● | M65: ●
C66: 1.6TB/2.0TB/3.2TB | L66: ● | M66: ●
A67: PCIe AIC NVMe SSD | B67: P3700/P3500 | C67: 200GB/400GB | D67: ● | E67: ● | H67: ● | I67: 10 | L67: ● | M67: 10 | P67: ● | Q67: ● | T67: ● | U67: ● | X67: ● | Y67: ●
C68: 800GB/1.6TB/2TB | D68: ● | E68: 10 | H68: 10 | L68: 10 | P68: ● | Q68: ● | T68: ● | U68: ● | X68: ● | Y68: ●
B69: P4500/P4600 | C69: 2TB/ | D69: ● | E69: ● | H69: ● | I69: 10 | L69: ● | M69: 10 | P69: ● | Q69: ● | T69: ● | U69: ● | X69: ● | Y69: ●
C70: 2TB/4TB | D70: ● | E70: ● | H70: ● | I70: 10 | L70: ● | M70: 10 | P70: ● | Q70: ● | T70: ● | U70: ● | X70: ● | Y70: ●
A71: QSFP Cables (See note 8) | C71: Passive Cable | D71: ● | E71: ● | H71: ● | I71: ● | L71: ● | M71: ● | P71: ● | Q71: ● | T71: ● | U71: ● | X71: ● | Y71: ●
C72: Active Optical Cable (1.5W) | D72: ● | E72: ● | H72: ● | I72: 8 | L72: ● | M72: 8 | P72: ● | Q72: ● | T72: ● | U72: ● | X72: ● | Y72: ●
C73: Active Optical Cable (2W) | E73: ● | I73: 8 | M73: 8 | P73: ● | Q73: ● | T73: ● | U73: ● | X73: ● | Y73: ●
A74: M.2 SSD(See note 10) | C74: PCIe M.2 | D74: ● | E74: 12 | H74: ● | I74: 12 | L74: ● | M74: 12 | P74: ● | Q74: ● | T74: ● | U74: ● | X74: ● | Y74: ●
C75: SATA M.2 | D75: ● | E75: 12 | H75: ● | I75: 12 | L75: ● | M75: 12 | P75: ● | Q75: ● | T75: ● | U75: ● | X75: ● | Y75: ●

Sheet Revision
A1: =MAX(A4:A24) -> 2019-04-15 | B1: =MAX(B4:B24) -> 1 | D1: <=== Linked to Summary Tab.
A3: Date | B3: Rev | C3: Notes | D3: Init
A4: 2019-04-01 | B4: 0.6 | C4: Initial Release. | D4: Zhaomin Cheng
A5: 2019-04-15 | B5: 1 | C5: Update CPU/DIMM;Update the thermal matrix with updated format | D5: Zhaomin Cheng

Sheet Macro1
